Workbook

Sheet 12.09.2025
A1: Согласовано Начальник МКУ "Управление образования" Муслюмовского района РТ ________________ /Л.Я. Хабибуллина/
CG8: I (макс.), мкг | CH8: I (мин.), мкг | CI8: I (сред.), мкг | CJ8: Zn (макс.), мкг | CK8: Zn (мин.), мкг | CL8: Zn (сред.), мкг | CM8: Se (макс.), мкг | CN8: Se (мин.), мкг | CO8: Se (сред.), мкг | CP8: Вложен-ный сахар, г | CQ8: Вложен-ная соль, г
B10: 1 ДЕНЬ
B11: Горячий завтрак
A12: ="-" -> - | B12: Хлеб пшеничный | C12: 30 | D12: 1.8 | E12: 0.0 | F12: 0.2 | G12: 0.2 | H12: 11.1 | I12: 54 | J12: 0.0 | K12: 0.0 | L12: 0.0 | M12: 0.0 | N12: 0.3 | O12: 10.7 | P12: 0.1 | Q12: 0.0 | R12: 0.0 | S12: 0.0 | T12: 0.5 | U12: 0.0 | V12: 0.0 | W12: 0.0 | X12: 0.0 | Y12: 0.0 | Z12: 0.0 | AA12: 0.0 | AB12: 0.0 | AC12: 0.0 | AD12: 0.0 | AE12: 0.0 | AF12: 0.0 | AG12: 0.0 | AH12: 0.0 | AI12: 0.0 | AK12: 95.8 | AL12: 99.7 | AM12: 152.7 | AN12: 50.6 | AO12: 30.0 | AP12: 60.0 | AQ12: 22.7 | AR12: 108.6 | AS12: 67.3 | AT12: 94.0 | AU12: 77.5 | AV12: 40.7 | AW12: 72.0 | AX12: 602.4 | AY12: 0.0 | AZ12: 196.3 | BA12: 85.4 | BB12: 56.6 | BC12: 44.9 | BD12: 0.0 | BE12: 0.0 | BF12: 0.0 | BG12: 0.0 | BH12: 0.0 | BI12: 0.0 | BJ12: 0.0 | BK12: 0.0 | BL12: 0.0 | BM12: 0.0 | BN12: 0.0 | BO12: 0.0 | BP12: 0.0 | BQ12: 0.0 | BR12: 0.0 | BS12: 0.0 | BT12: 0.0 | BU12: 0.0 | BV12: 0.1 | BW12: 0.0 | BX12: 0.0 | BY12: 0.0 | BZ12: 0.0 | CA12: 0.0 | CB12: 11.7 | CE12: 0.0 | CG12: 0.0 | CH12: 0.0 | CI12: 0.0 | CJ12: 570.0 | CK12: 219.6 | CL12: 394.8 | CM12: 4.6 | CN12: 4.6 | CO12: 4.6 | CP12: 0.0 | CQ12: 0.0
A13: ="-" -> - | B13: Хлеб ржаной | C13: 30 | D13: 1.8 | E13: 0.0 | F13: 0.4 | G13: 0.4 | H13: 12.5 | I13: 57 | J13: 0.1 | K13: 0.0 | L13: 0.0 | M13: 0.0 | N13: 0.4 | O13: 9.7 | P13: 2.5 | Q13: 0.0 | R13: 0.0 | S13: 0.3 | T13: 0.8 | U13: 183.0 | V13: 73.5 | W13: 10.5 | X13: 14.1 | Y13: 47.4 | Z13: 1.2 | AA13: 0.0 | AB13: 1.5 | AC13: 0.3 | AD13: 0.4 | AE13: 0.1 | AF13: 0.0 | AG13: 0.2 | AH13: 0.6 | AI13: 0.0 | AK13: 96.6 | AL13: 74.4 | AM13: 128.1 | AN13: 66.9 | AO13: 27.9 | AP13: 59.4 | AQ13: 24.0 | AR13: 111.3 | AS13: 89.1 | AT13: 87.3 | AU13: 139.2 | AV13: 37.2 | AW13: 93.0 | AX13: 467.7 | AY13: 0.0 | AZ13: 157.8 | BA13: 87.3 | BB13: 54.0 | BC13: 39.0 | BD13: 0.0 | BE13: 0.0 | BF13: 0.0 | BG13: 0.0 | BH13: 0.0 | BI13: 0.0 | BJ13: 0.0 | BK13: 0.0 | BL13: 0.0 | BM13: 0.0 | BN13: 0.0 | BO13: 0.0 | BP13: 0.0 | BQ13: 0.0 | BR13: 0.0 | BS13: 0.0 | BT13: 0.0 | BU13: 0.0 | BV13: 0.1 | BW13: 0.0 | BX13: 0.0 | BY13: 0.0 | BZ13: 0.0 | CA13: 0.0 | CB13: 14.1 | CE13: 0.3 | CG13: 3.0 | CH13: 3.0 | CI13: 3.0 | CJ13: 570.0 | CK13: 219.6 | CL13: 394.8 | CM13: 5.7 | CN13: 4.7 | CO13: 5.2 | CP13: 0.0 | CQ13: 0.0
A14: ="27/10" -> 27/10 | B14: Чай сладкий | C14: 200 | D14: 0.2 | E14: 0.0 | F14: 0.1 | G14: 0.1 | H14: 9.9 | I14: 39 | J14: 0.0 | K14: 0.0 | L14: 0.0 | M14: 0.0 | N14: 9.8 | O14: 0.0 | P14: 0.1 | Q14: 0.0 | R14: 0.0 | S14: 0.0 | T14: 0.1 | U14: 0.1 | V14: 0.3 | W14: 0.3 | X14: 0.0 | Y14: 0.0 | Z14: 0.0 | AA14: 0.0 | AB14: 0.0 | AC14: 0.0 | AD14: 0.0 | AE14: 0.0 | AF14: 0.0 | AG14: 0.0 | AH14: 0.0 | AI14: 0.0 | AK14: 0 | AL14: 0 | AM14: 0 | AN14: 0 | AO14: 0 | AP14: 0 | AQ14: 0 | AR14: 0 | AS14: 0 | AT14: 0 | AU14: 0 | AV14: 0 | AW14: 0 | AX14: 0 | AY14: 0 | AZ14: 0 | BA14: 0 | BB14: 0 | BC14: 0 | BD14: 0 | BE14: 0 | BF14: 0 | BG14: 0 | BH14: 0 | BI14: 0 | BJ14: 0 | BK14: 0 | BL14: 0 | BM14: 0 | BN14: 0 | BO14: 0 | BP14: 0 | BQ14: 0 | BR14: 0 | BS14: 0 | BT14: 0 | BU14: 0 | BV14: 0 | BW14: 0 | BX14: 0 | BY14: 0 | BZ14: 0 | CA14: 0 | CB14: 200.1 | CE14: 0 | CG14: 4.19 | CH14: 4.19 | CI14: 4.19 | CJ14: 485 | CK14: 184 | CL14: 334.5 | CM14: 44.42 | CN14: 26.42 | CO14: 35.42 | CP14: 10 | CQ14: 0
A15: ="6/1" -> 6/1 | B15: Салат из белокочанной капусты с морковью и растительным маслом | C15: 100 | D15: 1.5 | E15: 0.0 | F15: 6.0 | G15: 6.0 | H15: 9.3 | I15: 93 | J15: 0.8 | K15: 3.9 | L15: 0.0 | M15: 0.0 | N15: 7.4 | O15: 0.1 | P15: 1.9 | Q15: 0.0 | R15: 0.0 | S15: 0.3 | T15: 1.2 | U15: 202.6 | V15: 252.0 | W15: 41.4 | X15: 17.8 | Y15: 31.9 | Z15: 0.6 | AA15: 0.0 | AB15: 1896.3 | AC15: 322.3 | AD15: 2.8 | AE15: 0.0 | AF15: 0.0 | AG15: 0.7 | AH15: 0.9 | AI15: 33.9 | AK15: 49.37 | AL15: 42.24 | AM15: 53.94 | AN15: 50.79 | AO15: 17.58 | AP15: 38.09 | AQ15: 8.6 | AR15: 46.02 | AS15: 59.71 | AT15: 68.9 | AU15: 147.59 | AV15: 22.78 | AW15: 39.09 | AX15: 238.97 | AY15: 0 | AZ15: 48.07 | BA15: 48.54 | BB15: 39.57 | BC15: 16.58 | BD15: 0 | BE15: 0 | BF15: 0 | BG15: 0 | BH15: 0 | BI15: 0 | BJ15: 0 | BK15: 0.36 | BL15: 0 | BM15: 0.24 | BN15: 0.02 | BO15: 0.04 | BP15: 0 | BQ15: 0 | BR15: 0 | BS15: 1.39 | BT15: 0 | BU15: 0 | BV15: 3.47 | BW15: 0 | BX15: 0 | BY15: 0 | BZ15: 0 | CA15: 0 | CB15: 81.89 | CE15: 316.05 | CG15: 27.1 | CH15: 12.42 | CI15: 19.76 | CJ15: 812.67 | CK15: 194.59 | CL15: 503.63 | CM15: 13.05 | CN15: 12.32 | CO15: 12.69 | CP15: 3 | CQ15: 0.5
A16: ="4/9" -> 4/9 | B16: Плов из мяса цыплят-бройлеров | C16: 220 | D16: 19.8 | E16: 16.3 | F16: 21.6 | G16: 7.8 | H16: 41.3 | I16: 438 | J16: 5.8 | K16: 6.4 | L16: 0.0 | M16: 0.0 | N16: 2.0 | O16: 37.2 | P16: 2.1 | Q16: 0.0 | R16: 0.0 | S16: 0.1 | T16: 1.8 | U16: 149.4 | V16: 157.0 | W16: 22.4 | X16: 37.1 | Y16: 177.5 | Z16: 1.8 | AA16: 34.8 | AB16: 1461.9 | AC16: 313.6 | AD16: 5.1 | AE16: 0.1 | AF16: 0.1 | AG16: 6.9 | AH16: 14.3 | AI16: 1.0 | AK16: 982.5 | AL16: 775.61 | AM16: 1553.28 | AN16: 1538.51 | AO16: 496 | AP16: 878.92 | AQ16: 309.03 | AR16: 839.19 | AS16: 1217.16 | AT16: 1335.08 | AU16: 1722.44 | AV16: 514.58 | AW16: 1379.83 | AX16: 2886.73 | AY16: 135.14 | AZ16: 939.74 | BA16: 923.96 | BB16: 708.85 | BC16: 264.71 | BD16: 0 | BE16: 0 | BF16: 0 | BG16: 0 | BH16: 0 | BI16: 0 | BJ16: 0 | BK16: 0.53 | BL16: 0 | BM16: 0.32 | BN16: 0.02 | BO16: 0.05 | BP16: 0 | BQ16: 0 | BR16: 0 | BS16: 1.88 | BT16: 0 | BU16: 0 | BV16: 4.46 | BW16: 0 | BX16: 0 | BY16: 0 | BZ16: 0 | CA16: 0 | CB16: 194.17 | CE16: 278.46 | CG16: 26.84 | CH16: 13.56 | CI16: 20.2 | CJ16: 5252.87 | CK16: 3022.59 | CL16: 4137.73 | CM16: 27.27 | CN16: 17.33 | CO16: 22.3 | CP16: 0 | CQ16: 0.88
B17: Итого за 'Горячий завтрак' | C17: =SUM(C12:C16) -> 580 | D17: =SUM(D12:D16) -> 25.1 | E17: 16.3 | F17: 28.1 | G17: 14.4 | H17: 84.2 | I17: 680 | J17: 6.6 | K17: 10.3 | L17: 0.0 | M17: 0.0 | N17: 19.9 | O17: 57.7 | P17: 6.6 | Q17: 0.0 | R17: 0.0 | S17: 0.6 | T17: 4.3 | U17: 535.1 | V17: 482.8 | W17: 74.6 | X17: 69.1 | Y17: 256.8 | Z17: 3.6 | AA17: 34.8 | AB17: 3359.7 | AC17: 636.2 | AD17: 8.3 | AE17: 0.2 | AF17: 0.2 | AG17: 7.8 | AH17: 15.8 | AI17: 34.9 | AK17: 1224.26 | AL17: 991.95 | AM17: 1888.01 | AN17: 1706.84 | AO17: 571.5 | AP17: 1036.45 | AQ17: 364.34 | AR17: 1105.09 | AS17: 1433.31 | AT17: 1585.24 | AU17: 2086.75 | AV17: 615.27 | AW17: 1583.96 | AX17: 4195.79 | AY17: 135.14 | AZ17: 1341.88 | BA17: 1145.14 | BB17: 859.06 | BC17: 365.19 | BD17: 0 | BE17: 0 | BF17: 0 | BG17: 0 | BH17: 0 | BI17: 0 | BJ17: 0 | BK17: 0.96 | BL17: 0 | BM17: 0.57 | BN17: 0.05 | BO17: 0.09 | BP17: 0 | BQ17: 0 | BR17: 0.01 | BS17: 3.33 | BT17: 0 | BU17: 0 | BV17: 8.15 | BW17: 0.03 | BX17: 0 | BY17: 0 | BZ17: 0 | CA17: 0 | CB17: 501.98 | CD17: =$I$17/#REF!*100 ->  | CE17: 594.76 | CG17: 60.12 | CH17: 32.17 | CI17: 46.15 | CJ17: 7880.53 | CK17: 3913.58 | CL17: 5897.05 | CM17: 96.14 | CN17: 66.83 | CO17: 81.48 | CP17: 13 | CQ17: 1.38
B19: 2 ДЕНЬ
B20: Горячий завтрак
A21: ="-" -> - | B21: Хлеб пшеничный | C21: 30 | D21: 1.8 | E21: 0.0 | F21: 0.2 | G21: 0.2 | H21: 11.1 | I21: 54 | J21: 0.0 | K21: 0.0 | L21: 0.0 | M21: 0.0 | N21: 0.3 | O21: 10.7 | P21: 0.1 | Q21: 0.0 | R21: 0.0 | S21: 0.0 | T21: 0.5 | U21: 0.0 | V21: 0.0 | W21: 0.0 | X21: 0.0 | Y21: 0.0 | Z21: 0.0 | AA21: 0.0 | AB21: 0.0 | AC21: 0.0 | AD21: 0.0 | AE21: 0.0 | AF21: 0.0 | AG21: 0.0 | AH21: 0.0 | AI21: 0.0 | AK21: 95.8 | AL21: 99.7 | AM21: 152.7 | AN21: 50.6 | AO21: 30.0 | AP21: 60.0 | AQ21: 22.7 | AR21: 108.6 | AS21: 67.3 | AT21: 94.0 | AU21: 77.5 | AV21: 40.7 | AW21: 72.0 | AX21: 602.4 | AY21: 0.0 | AZ21: 196.3 | BA21: 85.4 | BB21: 56.6 | BC21: 44.9 | BD21: 0.0 | BE21: 0.0 | BF21: 0.0 | BG21: 0.0 | BH21: 0.0 | BI21: 0.0 | BJ21: 0.0 | BK21: 0.0 | BL21: 0.0 | BM21: 0.0 | BN21: 0.0 | BO21: 0.0 | BP21: 0.0 | BQ21: 0.0 | BR21: 0.0 | BS21: 0.0 | BT21: 0.0 | BU21: 0.0 | BV21: 0.1 | BW21: 0.0 | BX21: 0.0 | BY21: 0.0 | BZ21: 0.0 | CA21: 0.0 | CB21: 11.7 | CE21: 0.0 | CG21: 0.0 | CH21: 0.0 | CI21: 0.0 | CJ21: 570.0 | CK21: 219.6 | CL21: 394.8 | CM21: 4.6 | CN21: 4.6 | CO21: 4.6 | CP21: 0.0 | CQ21: 0.0
A22: ="-" -> - | B22: Хлеб ржаной | C22: 30 | D22: 1.8 | E22: 0.0 | F22: 0.4 | G22: 0.4 | H22: 12.5 | I22: 57 | J22: 0.1 | K22: 0.0 | L22: 0.0 | M22: 0.0 | N22: 0.4 | O22: 9.7 | P22: 2.5 | Q22: 0.0 | R22: 0.0 | S22: 0.3 | T22: 0.8 | U22: 183.0 | V22: 73.5 | W22: 10.5 | X22: 14.1 | Y22: 47.4 | Z22: 1.2 | AA22: 0.0 | AB22: 1.5 | AC22: 0.3 | AD22: 0.4 | AE22: 0.1 | AF22: 0.0 | AG22: 0.2 | AH22: 0.6 | AI22: 0.0 | AK22: 96.6 | AL22: 74.4 | AM22: 128.1 | AN22: 66.9 | AO22: 27.9 | AP22: 59.4 | AQ22: 24.0 | AR22: 111.3 | AS22: 89.1 | AT22: 87.3 | AU22: 139.2 | AV22: 37.2 | AW22: 93.0 | AX22: 467.7 | AY22: 0.0 | AZ22: 157.8 | BA22: 87.3 | BB22: 54.0 | BC22: 39.0 | BD22: 0.0 | BE22: 0.0 | BF22: 0.0 | BG22: 0.0 | BH22: 0.0 | BI22: 0.0 | BJ22: 0.0 | BK22: 0.0 | BL22: 0.0 | BM22: 0.0 | BN22: 0.0 | BO22: 0.0 | BP22: 0.0 | BQ22: 0.0 | BR22: 0.0 | BS22: 0.0 | BT22: 0.0 | BU22: 0.0 | BV22: 0.1 | BW22: 0.0 | BX22: 0.0 | BY22: 0.0 | BZ22: 0.0 | CA22: 0.0 | CB22: 14.1 | CE22: 0.3 | CG22: 3.0 | CH22: 3.0 | CI22: 3.0 | CJ22: 570.0 | CK22: 219.6 | CL22: 394.8 | CM22: 5.7 | CN22: 4.7 | CO22: 5.2 | CP22: 0.0 | CQ22: 0.0
A23: ="3/10" -> 3/10 | B23: Компот из яблок | C23: 200 | D23: 0.2 | E23: 0.0 | F23: 0.2 | G23: 0.2 | H23: 19.2 | I23: 75 | J23: 0.0 | K23: 0.0 | L23: 0.0 | M23: 0.0 | N23: 18.2 | O23: 0.3 | P23: 0.7 | Q23: 0.0 | R23: 0.0 | S23: 0.3 | T23: 0.2 | U23: 10.4 | V23: 110.5 | W23: 6.6 | X23: 3.4 | Y23: 4.1 | Z23: 0.9 | AA23: 0.0 | AB23: 10.8 | AC23: 2.0 | AD23: 0.1 | AE23: 0.0 | AF23: 0.0 | AG23: 0.1 | AH23: 0.2 | AI23: 1.6 | AK23: 4.7 | AL23: 5.1 | AM23: 7.45 | AN23: 7.06 | AO23: 1.18 | AP23: 4.31 | AQ23: 1.18 | AR23: 3.53 | AS23: 6.66 | AT23: 3.92 | AU23: 30.58 | AV23: 2.74 | AW23: 5.49 | AX23: 16.46 | AY23: 0 | AZ23: 5.1 | BA23: 6.27 | BB23: 2.35 | BC23: 1.96 | BD23: 0 | BE23: 0 | BF23: 0 | BG23: 0 | BH23: 0 | BI23: 0 | BJ23: 0 | BK23: 0 | BL23: 0 | BM23: 0 | BN23: 0 | BO23: 0 | BP23: 0 | BQ23: 0 | BR23: 0 | BS23: 0 | BT23: 0 | BU23: 0 | BV23: 0 | BW23: 0 | BX23: 0 | BY23: 0 | BZ23: 0 | CA23: 0 | CB23: 244.54 | CE23: 1.8 | CG23: 5 | CH23: 5 | CI23: 5 | CJ23: 480 | CK23: 232.2 | CL23: 356.1 | CM23: 45.78 | CN23: 26.88 | CO23: 36.33 | CP23: 15 | CQ23: 0
A24: ="16/1" -> 16/1 | B24: Салат из моркови с растительным маслом | C24: 100 | D24: 1.2 | E24: 0.0 | F24: 6.0 | G24: 6.0 | H24: 11.3 | I24: 98 | J24: 0.8 | K24: 3.9 | L24: 0.0 | M24: 0.0 | N24: 9.0 | O24: 0.2 | P24: 2.2 | Q24: 0.0 | R24: 0.0 | S24: 0.3 | T24: 0.9 | U24: 19.0 | V24: 180.4 | W24: 24.4 | X24: 34.3 | Y24: 49.7 | Z24: 0.6 | AA24: 0.0 | AB24: 10819.2 | AC24: 1840.0 | AD24: 3.0 | AE24: 0.1 | AF24: 0.1 | AG24: 0.9 | AH24: 1.0 | AI24: 4.5 | AK24: 38.77 | AL24: 31.56 | AM24: 39.67 | AN24: 34.26 | AO24: 8.11 | AP24: 28.85 | AQ24: 7.21 | AR24: 27.95 | AS24: 43.28 | AT24: 36.97 | AU24: 121.72 | AV24: 12.62 | AW24: 26.15 | AX24: 211.88 | AY24: 0 | AZ24: 27.05 | BA24: 29.75 | BB24: 16.23 | BC24: 10.82 | BD24: 0 | BE24: 0 | BF24: 0 | BG24: 0 | BH24: 0 | BI24: 0 | BJ24: 0 | BK24: 0.36 | BL24: 0 | BM24: 0.24 | BN24: 0.02 | BO24: 0.04 | BP24: 0 | BQ24: 0 | BR24: 0 | BS24: 1.39 | BT24: 0 | BU24: 0 | BV24: 3.47 | BW24: 0 | BX24: 0 | BY24: 0 | BZ24: 0 | CA24: 0 | CB24: 80.97 | CE24: 1803.2 | CG24: 4.9 | CH24: 4.72 | CI24: 4.81 | CJ24: 819.5 | CK24: 194.92 | CL24: 507.21 | CM24: 4.31 | CN24: 2.52 | CO24: 3.41 | CP24: 3 | CQ24: 0
A25: ="3/3" -> 3/3 | B25: Картофельное пюре с маслом сливочным | C25: 180 | D25: 3.7 | E25: 0.7 | F25: 4.3 | G25: 0.6 | H25: 26.5 | I25: 158 | J25: 2.7 | K25: 0.1 | L25: 0.0 | M25: 0.0 | N25: 2.6 | O25: 21.9 | P25: 2.0 | Q25: 0.0 | R25: 0.0 | S25: 0.4 | T25: 2.3 | U25: 93.4 | V25: 763.5 | W25: 40.8 | X25: 36.4 | Y25: 104.2 | Z25: 1.4 | AA25: 22.5 | AB25: 40.9 | AC25: 30.1 | AD25: 0.2 | AE25: 0.1 | AF25: 0.1 | AG25: 1.6 | AH25: 3.1 | AI25: 6.5 | AK25: 40.27 | AL25: 63.31 | AM25: 80.2 | AN25: 94.26 | AO25: 16.12 | AP25: 63.57 | AQ25: 32.62 | AR25: 64.89 | AS25: 90.8 | AT25: 247.35 | AU25: 110.17 | AV25: 23.04 | AW25: 64.13 | AX25: 344.65 | AY25: 0 | AZ25: 48.22 | BA25: 43.86 | BB25: 47.97 | BC25: 20.43 | BD25: 0.11 | BE25: 0.05 | BF25: 0.03 | BG25: 0.06 | BH25: 0.07 | BI25: 0.34 | BJ25: 0 | BK25: 1.05 | BL25: 0 | BM25: 0.31 | BN25: 0 | BO25: 0 | BP25: 0 | BQ25: 0.07 | BR25: 0.11 | BS25: 1.02 | BT25: 0 | BU25: 0 | BV25: 0.17 | BW25: 0 | BX25: 0 | BY25: 0 | BZ25: 0 | CA25: 0 | CB25: 148.48 | CE25: 29.32 | CG25: 21.11 | CH25: 14 | CI25: 17.55 | CJ25: 722.47 | CK25: 635.04 | CL25: 678.76 | CM25: 29.29 | CN25: 4.31 | CO25: 16.8 | CP25: 0 | CQ25: 0.54
A26: ="36/8" -> 36/8 | B26: Тефтели из мяса говядины с рисом | C26: 100 | D26: 10.7 | E26: 11.5 | F26: 10.8 | G26: 4.8 | H26: 14.3 | I26: 192 | J26: 7.2 | K26: 68.3 | L26: 0.0 | M26: 0.0 | N26: 2.5 | O26: 9.2 | P26: 2.6 | Q26: 0.0 | R26: 0.0 | S26: 0.1 | T26: 1.6 | U26: 222.5 | V26: 209.2 | W26: 18.7 | X26: 23.0 | Y26: 150.3 | Z26: 2.1 | AA26: 0.0 | AB26: 0.0 | AC26: 0.0 | AD26: 2.6 | AE26: 0.1 | AF26: 0.1 | AG26: 3.2 | AH26: 5.9 | AI26: 3.0 | AK26: 694.15 | AL26: 528.67 | AM26: 998.48 | AN26: 1631.28 | AO26: 294.69 | AP26: 529.14 | AQ26: 142.28 | AR26: 542.9 | AS26: 717.14 | AT26: 703.64 | AU26: 1153.22 | AV26: 461.16 | AW26: 620.13 | AX26: 2126.66 | AY26: 179.08 | AZ26: 491.06 | BA26: 530.29 | BB26: 441.28 | BC26: 179.8 | BD26: 0 | BE26: 0 | BF26: 0 | BG26: 0 | BH26: 0 | BI26: 0.01 | BJ26: 0 | BK26: 0.31 | BL26: 0 | BM26: 0.19 | BN26: 0.02 | BO26: 0.03 | BP26: 0 | BQ26: 0 | BR26: 0 | BS26: 1.13 | BT26: 0 | BU26: 0 | BV26: 2.77 | BW26: 0 | BX26: 0 | BY26: 0 | BZ26: 0 | CA26: 0 | CB26: 91.26 | CE26: 0 | CG26: 26.19 | CH26: 16.19 | CI26: 21.19 | CJ26: 2841.57 | CK26: 1629.49 | CL26: 2235.53 | CM26: 25.35 | CN26: 14.58 | CO26: 19.96 | CP26: 0 | CQ26: 0.5
B27: Итого за 'Горячий завтрак' | C27: =SUM(C21:C26) -> 640 | D27: =SUM(D21:D26) -> 19.4 | E27: 12.1 | F27: 21.7 | G27: 12.1 | H27: 94.9 | I27: 635 | J27: 10.7 | K27: 72.3 | L27: 0.0 | M27: 0.0 | N27: 33.0 | O27: 51.9 | P27: 10.0 | Q27: 0.0 | R27: 0.0 | S27: 1.3 | T27: 6.2 | U27: 528.3 | V27: 1337.2 | W27: 101.0 | X27: 111.2 | Y27: 355.7 | Z27: 6.2 | AA27: 22.5 | AB27: 10872.4 | AC27: 1872.4 | AD27: 6.3 | AE27: 0.3 | AF27: 0.3 | AG27: 6.0 | AH27: 10.8 | AI27: 15.7 | AK27: 970.28 | AL27: 802.74 | AM27: 1406.59 | AN27: 1884.4 | AO27: 378.02 | AP27: 745.3 | AQ27: 229.99 | AR27: 859.15 | AS27: 1014.32 | AT27: 1173.14 | AU27: 1632.4 | AV27: 577.48 | AW27: 880.93 | AX27: 3769.74 | AY27: 179.08 | AZ27: 925.5 | BA27: 782.82 | BB27: 618.46 | BC27: 296.9 | BD27: 0.11 | BE27: 0.05 | BF27: 0.03 | BG27: 0.06 | BH27: 0.07 | BI27: 0.35 | BJ27: 0 | BK27: 1.79 | BL27: 0 | BM27: 0.75 | BN27: 0.04 | BO27: 0.07 | BP27: 0 | BQ27: 0.07 | BR27: 0.11 | BS27: 3.59 | BT27: 0 | BU27: 0 | BV27: 6.63 | BW27: 0.03 | BX27: 0 | BY27: 0 | BZ27: 0 | CA27: 0 | CB27: 591.08 | CD27: =$I$27/#REF!*100 ->  | CE27: 1834.57 | CG27: 59.19 | CH27: 41.9 | CI27: 50.54 | CJ27: 6193.54 | CK27: 3204.04 | CL27: 4698.79 | CM27: 116.13 | CN27: 59.05 | CO27: 87.59 | CP27: 18 | CQ27: 1.04
B29: 3 ДЕНЬ
B30: Горячий завтрак
A31: ="-" -> - | B31: Хлеб пшеничный | C31: 30 | D31: 1.8 | E31: 0.0 | F31: 0.2 | G31: 0.2 | H31: 11.1 | I31: 54 | J31: 0.0 | K31: 0.0 | L31: 0.0 | M31: 0.0 | N31: 0.3 | O31: 10.7 | P31: 0.1 | Q31: 0.0 | R31: 0.0 | S31: 0.0 | T31: 0.5 | U31: 0.0 | V31: 0.0 | W31: 0.0 | X31: 0.0 | Y31: 0.0 | Z31: 0.0 | AA31: 0.0 | AB31: 0.0 | AC31: 0.0 | AD31: 0.0 | AE31: 0.0 | AF31: 0.0 | AG31: 0.0 | AH31: 0.0 | AI31: 0.0 | AK31: 95.8 | AL31: 99.7 | AM31: 152.7 | AN31: 50.6 | AO31: 30.0 | AP31: 60.0 | AQ31: 22.7 | AR31: 108.6 | AS31: 67.3 | AT31: 94.0 | AU31: 77.5 | AV31: 40.7 | AW31: 72.0 | AX31: 602.4 | AY31: 0.0 | AZ31: 196.3 | BA31: 85.4 | BB31: 56.6 | BC31: 44.9 | BD31: 0.0 | BE31: 0.0 | BF31: 0.0 | BG31: 0.0 | BH31: 0.0 | BI31: 0.0 | BJ31: 0.0 | BK31: 0.0 | BL31: 0.0 | BM31: 0.0 | BN31: 0.0 | BO31: 0.0 | BP31: 0.0 | BQ31: 0.0 | BR31: 0.0 | BS31: 0.0 | BT31: 0.0 | BU31: 0.0 | BV31: 0.1 | BW31: 0.0 | BX31: 0.0 | BY31: 0.0 | BZ31: 0.0 | CA31: 0.0 | CB31: 11.7 | CE31: 0.0 | CG31: 0.0 | CH31: 0.0 | CI31: 0.0 | CJ31: 570.0 | CK31: 219.6 | CL31: 394.8 | CM31: 4.6 | CN31: 4.6 | CO31: 4.6 | CP31: 0.0 | CQ31: 0.0
A32: ="-" -> - | B32: Хлеб ржаной | C32: 30 | D32: 1.8 | E32: 0.0 | F32: 0.4 | G32: 0.4 | H32: 12.5 | I32: 57 | J32: 0.1 | K32: 0.0 | L32: 0.0 | M32: 0.0 | N32: 0.4 | O32: 9.7 | P32: 2.5 | Q32: 0.0 | R32: 0.0 | S32: 0.3 | T32: 0.8 | U32: 183.0 | V32: 73.5 | W32: 10.5 | X32: 14.1 | Y32: 47.4 | Z32: 1.2 | AA32: 0.0 | AB32: 1.5 | AC32: 0.3 | AD32: 0.4 | AE32: 0.1 | AF32: 0.0 | AG32: 0.2 | AH32: 0.6 | AI32: 0.0 | AK32: 96.6 | AL32: 74.4 | AM32: 128.1 | AN32: 66.9 | AO32: 27.9 | AP32: 59.4 | AQ32: 24.0 | AR32: 111.3 | AS32: 89.1 | AT32: 87.3 | AU32: 139.2 | AV32: 37.2 | AW32: 93.0 | AX32: 467.7 | AY32: 0.0 | AZ32: 157.8 | BA32: 87.3 | BB32: 54.0 | BC32: 39.0 | BD32: 0.0 | BE32: 0.0 | BF32: 0.0 | BG32: 0.0 | BH32: 0.0 | BI32: 0.0 | BJ32: 0.0 | BK32: 0.0 | BL32: 0.0 | BM32: 0.0 | BN32: 0.0 | BO32: 0.0 | BP32: 0.0 | BQ32: 0.0 | BR32: 0.0 | BS32: 0.0 | BT32: 0.0 | BU32: 0.0 | BV32: 0.1 | BW32: 0.0 | BX32: 0.0 | BY32: 0.0 | BZ32: 0.0 | CA32: 0.0 | CB32: 14.1 | CE32: 0.3 | CG32: 3.0 | CH32: 3.0 | CI32: 3.0 | CJ32: 570.0 | CK32: 219.6 | CL32: 394.8 | CM32: 5.7 | CN32: 4.7 | CO32: 5.2 | CP32: 0.0 | CQ32: 0.0
A33: ="27/10" -> 27/10 | B33: Чай полусладкий | C33: 200 | D33: 0.2 | E33: 0.0 | F33: 0.1 | G33: 0.1 | H33: 5.0 | I33: 20 | J33: 0.0 | K33: 0.0 | L33: 0.0 | M33: 0.0 | N33: 4.9 | O33: 0.0 | P33: 0.1 | Q33: 0.0 | R33: 0.0 | S33: 0.0 | T33: 0.1 | U33: 0.1 | V33: 0.2 | W33: 0.2 | X33: 0.0 | Y33: 0.0 | Z33: 0.0 | AA33: 0.0 | AB33: 0.0 | AC33: 0.0 | AD33: 0.0 | AE33: 0.0 | AF33: 0.0 | AG33: 0.0 | AH33: 0.0 | AI33: 0.0 | AK33: 0 | AL33: 0 | AM33: 0 | AN33: 0 | AO33: 0 | AP33: 0 | AQ33: 0 | AR33: 0 | AS33: 0 | AT33: 0 | AU33: 0 | AV33: 0 | AW33: 0 | AX33: 0 | AY33: 0 | AZ33: 0 | BA33: 0 | BB33: 0 | BC33: 0 | BD33: 0 | BE33: 0 | BF33: 0 | BG33: 0 | BH33: 0 | BI33: 0 | BJ33: 0 | BK33: 0 | BL33: 0 | BM33: 0 | BN33: 0 | BO33: 0 | BP33: 0 | BQ33: 0 | BR33: 0 | BS33: 0 | BT33: 0 | BU33: 0 | BV33: 0 | BW33: 0 | BX33: 0 | BY33: 0 | BZ33: 0 | CA33: 0 | CB33: 200.09 | CE33: 0 | CG33: 4.1 | CH33: 4.1 | CI33: 4.1 | CJ33: 442.5 | CK33: 174 | CL33: 308.25 | CM33: 44.01 | CN33: 26.01 | CO33: 35.01 | CP33: 5 | CQ33: 0
A34: ="-" -> - | B34: Яблоки | C34: 100 | D34: 0.4 | E34: 0.0 | F34: 0.4 | G34: 0.4 | H34: 11.6 | I34: 49 | J34: 0.1 | K34: 0.0 | L34: 0.0 | M34: 0.0 | N34: 9.0 | O34: 0.8 | P34: 1.8 | Q34: 0.0 | R34: 0.0 | S34: 0.8 | T34: 0.5 | U34: 26.0 | V34: 278.0 | W34: 16.0 | X34: 9.0 | Y34: 11.0 | Z34: 2.2 | AA34: 0.0 | AB34: 30.0 | AC34: 5.0 | AD34: 0.2 | AE34: 0.0 | AF34: 0.0 | AG34: 0.3 | AH34: 0.4 | AI34: 10.0 | AK34: 12 | AL34: 13 | AM34: 19 | AN34: 18 | AO34: 3 | AP34: 11 | AQ34: 3 | AR34: 9 | AS34: 17 | AT34: 10 | AU34: 78 | AV34: 7 | AW34: 14 | AX34: 42 | AY34: 0 | AZ34: 13 | BA34: 16 | BB34: 6 | BC34: 5 | BD34: 0 | BE34: 0 | BF34: 0 | BG34: 0 | BH34: 0 | BI34: 0 | BJ34: 0 | BK34: 0 | BL34: 0 | BM34: 0 | BN34: 0 | BO34: 0 | BP34: 0 | BQ34: 0 | BR34: 0 | BS34: 0 | BT34: 0 | BU34: 0 | BV34: 0 | BW34: 0 | BX34: 0 | BY34: 0 | BZ34: 0 | CA34: 0 | CB34: 86.3 | CE34: 5 | CG34: 2 | CH34: 2 | CI34: 2 | CJ34: 150 | CK34: 150 | CL34: 150 | CM34: 46.8 | CN34: 46.8 | CO34: 46.8 | CP34: 0 | CQ34: 0
A35: ="18/2" -> 18/2 | B35: Суп картофельный с макаронными изделиями | C35: 220 | D35: 2.4 | E35: 0.0 | F35: 2.1 | G35: 2.1 | H35: 17.9 | I35: 98 | J35: 0.3 | K35: 1.1 | L35: 0.0 | M35: 0.0 | N35: 2.1 | O35: 14.2 | P35: 1.5 | Q35: 0.0 | R35: 0.0 | S35: 0.2 | T35: 1.3 | U35: 174.4 | V35: 388.6 | W35: 13.7 | X35: 19.5 | Y35: 48.9 | Z35: 0.8 | AA35: 0.0 | AB35: 1151.6 | AC35: 213.1 | AD35: 1.0 | AE35: 0.1 | AF35: 0.1 | AG35: 0.9 | AH35: 1.5 | AI35: 5.4 | AK35: 59.77 | AL35: 64.54 | AM35: 103.62 | AN35: 61.54 | AO35: 20.07 | AP35: 54 | AQ35: 21.44 | AR35: 70.73 | AS35: 68.21 | AT35: 134.99 | AU35: 85.31 | AV35: 26.98 | AW35: 57.67 | AX35: 420.32 | AY35: 0 | AZ35: 104.13 | BA35: 62.48 | BB35: 41.36 | BC35: 26.16 | BD35: 0 | BE35: 0 | BF35: 0 | BG35: 0 | BH35: 0 | BI35: 0 | BJ35: 0 | BK35: 0.17 | BL35: 0 | BM35: 0.08 | BN35: 0.01 | BO35: 0.01 | BP35: 0 | BQ35: 0 | BR35: 0 | BS35: 0.51 | BT35: 0 | BU35: 0 | BV35: 1.11 | BW35: 0 | BX35: 0 | BY35: 0 | BZ35: 0 | CA35: 0 | CB35: 229.15 | CE35: 191.93 | CG35: 20.37 | CH35: 13.13 | CI35: 16.75 | CJ35: 622.77 | CK35: 372.86 | CL35: 497.82 | CM35: 38.79 | CN35: 19.02 | CO35: 28.9 | CP35: 0 | CQ35: 0.44
A36: ="-" -> - | B36: Мясо птицы отварное для супа | C36: 30 | D36: 6.0 | E36: 6.3 | F36: 5.6 | G36: 0.0 | H36: 0.0 | I36: 75 | J36: 1.5 | K36: 0.0 | L36: 0.0 | M36: 0.0 | N36: 0.0 | O36: 0.0 | P36: 0.0 | Q36: 0.0 | R36: 0.0 | S36: 0.0 | T36: 0.3 | U36: 24.4 | V36: 59.4 | W36: 4.9 | X36: 5.5 | Y36: 50.0 | Z36: 0.5 | AA36: 14.6 | AB36: 2.8 | AC36: 25.1 | AD36: 0.2 | AE36: 0.0 | AF36: 0.0 | AG36: 2.1 | AH36: 4.4 | AI36: 0.3 | AK36: 286.88 | AL36: 226.69 | AM36: 461.89 | AN36: 517.18 | AO36: 154.07 | AP36: 279.69 | AQ36: 95.85 | AR36: 243.38 | AS36: 377.5 | AT36: 400.72 | AU36: 533.53 | AV36: 158.98 | AW36: 449.46 | AX36: 844.3 | AY36: 49.4 | AZ36: 286.88 | BA36: 281 | BB36: 209.68 | BC36: 73.27 | BD36: 0 | BE36: 0 | BF36: 0 | BG36: 0 | BH36: 0 | BI36: 0 | BJ36: 0 | BK36: 0 | BL36: 0 | BM36: 0 | BN36: 0 | BO36: 0 | BP36: 0 | BQ36: 0 | BR36: 0 | BS36: 0 | BT36: 0 | BU36: 0 | BV36: 0 | BW36: 0 | BX36: 0 | BY36: 0 | BZ36: 0 | CA36: 0 | CB36: 21.78 | CE36: 15.08 | CG36: 15.03 | CH36: 5.64 | CI36: 10.34 | CJ36: 6765.12 | CK36: 4322.16 | CL36: 5543.64 | CM36: 43.64 | CN36: 31.95 | CO36: 37.79 | CP36: 0 | CQ36: 0
B37: Итого за 'Горячий завтрак' | C37: =SUM(C31:C36) -> 610 | D37: =SUM(D31:D36) -> 12.5 | E37: 6.3 | F37: 8.7 | G37: 3.1 | H37: 58.1 | I37: 353 | J37: 2.0 | K37: 1.1 | L37: 0.0 | M37: 0.0 | N37: 16.8 | O37: 35.3 | P37: 6.0 | Q37: 0.0 | R37: 0.0 | S37: 1.3 | T37: 3.5 | U37: 407.8 | V37: 799.7 | W37: 45.3 | X37: 48.0 | Y37: 157.3 | Z37: 4.7 | AA37: 14.6 | AB37: 1185.9 | AC37: 243.4 | AD37: 1.8 | AE37: 0.2 | AF37: 0.1 | AG37: 3.5 | AH37: 6.9 | AI37: 15.6 | AK37: 1290.3 | AL37: 1082.92 | AM37: 2018.32 | AN37: 1890.13 | AO37: 539.43 | AP37: 1020.4 | AQ37: 333.51 | AR37: 1200.35 | AS37: 1314.26 | AT37: 1410.35 | AU37: 1894.8 | AV37: 685.68 | AW37: 1398.37 | AX37: 5494.98 | AY37: 163.57 | AZ37: 1697.8 | BA37: 1199.59 | BB37: 818.26 | BC37: 423.13 | BD37: 0.11 | BE37: 0.05 | BF37: 0.03 | BG37: 0.06 | BH37: 0.07 | BI37: 0.31 | BJ37: 0 | BK37: 1.42 | BL37: 0 | BM37: 0.52 | BN37: 0.02 | BO37: 0.04 | BP37: 0 | BQ37: 0.06 | BR37: 0.1 | BS37: 2.18 | BT37: 0 | BU37: 0 | BV37: 4.05 | BW37: 0.04 | BX37: 0 | BY37: 0 | BZ37: 0 | CA37: 0 | CB37: 768.73 | CD37: =$I$37/#REF!*100 ->  | CE37: 54.38 | CG37: 56.28 | CH37: 34.85 | CI37: 45.56 | CJ37: 5949.76 | CK37: 3322.67 | CL37: 4636.21 | CM37: 140.02 | CN37: 108.75 | CO37: 124.39 | CP37: 5 | CQ37: 1.04
B39: 4 ДЕНЬ
B40: Горячий завтрак
A41: ="-" -> - | B41: Хлеб пшеничный | C41: 30 | D41: 1.8 | E41: 0.0 | F41: 0.2 | G41: 0.2 | H41: 11.1 | I41: 54 | J41: 0.0 | K41: 0.0 | L41: 0.0 | M41: 0.0 | N41: 0.3 | O41: 10.7 | P41: 0.1 | Q41: 0.0 | R41: 0.0 | S41: 0.0 | T41: 0.5 | U41: 0.0 | V41: 0.0 | W41: 0.0 | X41: 0.0 | Y41: 0.0 | Z41: 0.0 | AA41: 0.0 | AB41: 0.0 | AC41: 0.0 | AD41: 0.0 | AE41: 0.0 | AF41: 0.0 | AG41: 0.0 | AH41: 0.0 | AI41: 0.0 | AK41: 95.8 | AL41: 99.7 | AM41: 152.7 | AN41: 50.6 | AO41: 30.0 | AP41: 60.0 | AQ41: 22.7 | AR41: 108.6 | AS41: 67.3 | AT41: 94.0 | AU41: 77.5 | AV41: 40.7 | AW41: 72.0 | AX41: 602.4 | AY41: 0.0 | AZ41: 196.3 | BA41: 85.4 | BB41: 56.6 | BC41: 44.9 | BD41: 0.0 | BE41: 0.0 | BF41: 0.0 | BG41: 0.0 | BH41: 0.0 | BI41: 0.0 | BJ41: 0.0 | BK41: 0.0 | BL41: 0.0 | BM41: 0.0 | BN41: 0.0 | BO41: 0.0 | BP41: 0.0 | BQ41: 0.0 | BR41: 0.0 | BS41: 0.0 | BT41: 0.0 | BU41: 0.0 | BV41: 0.1 | BW41: 0.0 | BX41: 0.0 | BY41: 0.0 | BZ41: 0.0 | CA41: 0.0 | CB41: 11.7 | CE41: 0.0 | CG41: 0.0 | CH41: 0.0 | CI41: 0.0 | CJ41: 570.0 | CK41: 219.6 | CL41: 394.8 | CM41: 4.6 | CN41: 4.6 | CO41: 4.6 | CP41: 0.0 | CQ41: 0.0
A42: ="-" -> - | B42: Хлеб ржаной | C42: 30 | D42: 1.8 | E42: 0.0 | F42: 0.4 | G42: 0.4 | H42: 12.5 | I42: 57 | J42: 0.1 | K42: 0.0 | L42: 0.0 | M42: 0.0 | N42: 0.4 | O42: 9.7 | P42: 2.5 | Q42: 0.0 | R42: 0.0 | S42: 0.3 | T42: 0.8 | U42: 183.0 | V42: 73.5 | W42: 10.5 | X42: 14.1 | Y42: 47.4 | Z42: 1.2 | AA42: 0.0 | AB42: 1.5 | AC42: 0.3 | AD42: 0.4 | AE42: 0.1 | AF42: 0.0 | AG42: 0.2 | AH42: 0.6 | AI42: 0.0 | AK42: 96.6 | AL42: 74.4 | AM42: 128.1 | AN42: 66.9 | AO42: 27.9 | AP42: 59.4 | AQ42: 24.0 | AR42: 111.3 | AS42: 89.1 | AT42: 87.3 | AU42: 139.2 | AV42: 37.2 | AW42: 93.0 | AX42: 467.7 | AY42: 0.0 | AZ42: 157.8 | BA42: 87.3 | BB42: 54.0 | BC42: 39.0 | BD42: 0.0 | BE42: 0.0 | BF42: 0.0 | BG42: 0.0 | BH42: 0.0 | BI42: 0.0 | BJ42: 0.0 | BK42: 0.0 | BL42: 0.0 | BM42: 0.0 | BN42: 0.0 | BO42: 0.0 | BP42: 0.0 | BQ42: 0.0 | BR42: 0.0 | BS42: 0.0 | BT42: 0.0 | BU42: 0.0 | BV42: 0.1 | BW42: 0.0 | BX42: 0.0 | BY42: 0.0 | BZ42: 0.0 | CA42: 0.0 | CB42: 14.1 | CE42: 0.3 | CG42: 3.0 | CH42: 3.0 | CI42: 3.0 | CJ42: 570.0 | CK42: 219.6 | CL42: 394.8 | CM42: 5.7 | CN42: 4.7 | CO42: 5.2 | CP42: 0.0 | CQ42: 0.0
A43: ="29/10" -> 29/10 | B43: Чай с лимоном | C43: 200 | D43: 0.2 | E43: 0.0 | F43: 0.1 | G43: 0.1 | H43: 9.9 | I43: 40 | J43: 0.0 | K43: 0.0 | L43: 0.0 | M43: 0.0 | N43: 9.7 | O43: 0.0 | P43: 0.2 | Q43: 0.0 | R43: 0.0 | S43: 0.3 | T43: 0.1 | U43: 0.6 | V43: 8.2 | W43: 2.2 | X43: 0.6 | Y43: 1.0 | Z43: 0.1 | AA43: 0.0 | AB43: 0.4 | AC43: 0.1 | AD43: 0.0 | AE43: 0.0 | AF43: 0.0 | AG43: 0.0 | AH43: 0.0 | AI43: 0.8 | AK43: 0.67 | AL43: 0.76 | AM43: 0.62 | AN43: 1.15 | AO43: 0.29 | AP43: 1.2 | AQ43: 0 | AR43: 1.53 | AS43: 0 | AT43: 0 | AU43: 0 | AV43: 0.86 | AW43: 0 | AX43: 0 | AY43: 0 | AZ43: 0 | BA43: 0 | BB43: 0 | BC43: 0 | BD43: 0 | BE43: 0 | BF43: 0 | BG43: 0 | BH43: 0 | BI43: 0 | BJ43: 0 | BK43: 0 | BL43: 0 | BM43: 0 | BN43: 0 | BO43: 0 | BP43: 0 | BQ43: 0 | BR43: 0 | BS43: 0 | BT43: 0 | BU43: 0 | BV43: 0 | BW43: 0 | BX43: 0 | BY43: 0 | BZ43: 0 | CA43: 0 | CB43: 199.5 | CE43: 0.07 | CG43: 4.28 | CH43: 4.14 | CI43: 4.21 | CJ43: 482.93 | CK43: 183.51 | CL43: 333.22 | CM43: 44.36 | CN43: 26.52 | CO43: 35.44 | CP43: 9.76 | CQ43: 0
A44: ="32/1" -> 32/1 | B44: Салат из отварной свеклы с растительным маслом | C44: 100 | D44: 1.4 | E44: 0.0 | F44: 6.0 | G44: 6.0 | H44: 9.0 | I44: 90 | J44: 0.8 | K44: 3.9 | L44: 0.0 | M44: 0.0 | N44: 6.8 | O44: 0.1 | P44: 2.2 | Q44: 0.0 | R44: 0.0 | S44: 0.1 | T44: 1.5 | U44: 223.1 | V44: 223.4 | W44: 34.1 | X44: 19.3 | Y44: 38.0 | Z44: 1.2 | AA44: 0.0 | AB44: 8.2 | AC44: 2.0 | AD44: 2.7 | AE44: 0.0 | AF44: 0.0 | AG44: 0.2 | AH44: 0.4 | AI44: 1.9 | AK44: 48.8 | AL44: 55.25 | AM44: 61.69 | AN44: 84.71 | AO44: 18.42 | AP44: 48.8 | AQ44: 11.97 | AR44: 41.43 | AS44: 36.83 | AT44: 67.22 | AU44: 302.01 | AV44: 12.89 | AW44: 34.99 | AX44: 252.29 | AY44: 0 | AZ44: 43.28 | BA44: 58.01 | BB44: 46.04 | BC44: 13.81 | BD44: 0 | BE44: 0 | BF44: 0 | BG44: 0 | BH44: 0 | BI44: 0 | BJ44: 0 | BK44: 0.36 | BL44: 0 | BM44: 0.24 | BN44: 0.02 | BO44: 0.04 | BP44: 0 | BQ44: 0 | BR44: 0 | BS44: 1.39 | BT44: 0 | BU44: 0 | BV44: 3.47 | BW44: 0 | BX44: 0 | BY44: 0 | BZ44: 0 | CA44: 0 | CB44: 85.06 | CE44: 1.37 | CG44: 27.16 | CH44: 16.98 | CI44: 22.07 | CJ44: 854.32 | CK44: 204.39 | CL44: 529.35 | CM44: 4.09 | CN44: 2.6 | CO44: 3.35 | CP44: 0 | CQ44: 0.5
A45: ="3/4" -> 3/4 | B45: Каша гречневая вязкая | C45: 180 | D45: 5.5 | E45: 0.0 | F45: 4.6 | G45: 1.4 | H45: 28.6 | I45: 171 | J45: 2.4 | K45: 0.1 | L45: 0.0 | M45: 0.0 | N45: 0.7 | O45: 23.2 | P45: 4.7 | Q45: 0.0 | R45: 0.0 | S45: 0.0 | T45: 1.3 | U45: 174.4 | V45: 167.3 | W45: 11.2 | X45: 83.9 | Y45: 123.8 | Z45: 2.9 | AA45: 18.0 | AB45: 16.1 | AC45: 21.1 | AD45: 0.4 | AE45: 0.2 | AF45: 0.1 | AG45: 1.6 | AH45: 3.2 | AI45: 0.0 | AK45: 256.84 | AL45: 200.61 | AM45: 325.33 | AN45: 231.04 | AO45: 139.05 | AP45: 174.94 | AQ45: 79.69 | AR45: 257.7 | AS45: 252.25 | AT45: 485.19 | AU45: 478.78 | AV45: 131.2 | AW45: 312.23 | AX45: 982.99 | AY45: 0 | AZ45: 218.21 | BA45: 264.28 | BB45: 187.69 | BC45: 143.06 | BD45: 0.12 | BE45: 0.05 | BF45: 0.03 | BG45: 0.07 | BH45: 0.08 | BI45: 0.35 | BJ45: 0 | BK45: 1.2 | BL45: 0 | BM45: 0.32 | BN45: 0 | BO45: 0 | BP45: 0 | BQ45: 0.07 | BR45: 0.11 | BS45: 1.26 | BT45: 0.01 | BU45: 0 | BV45: 0.49 | BW45: 0.05 | BX45: 0 | BY45: 0 | BZ45: 0 | CA45: 0 | CB45: 151.3 | CE45: 20.69 | CG45: 22.52 | CH45: 13.38 | CI45: 17.95 | CJ45: 1890.51 | CK45: 917.07 | CL45: 1403.79 | CM45: 42.92 | CN45: 27.11 | CO45: 35.02 | CP45: 0 | CQ45: 0.45
A46: ="2/9" -> 2/9 | B46: Мясо птицы отварное в соусе | C46: 100 | D46: 11.6 | E46: 11.3 | F46: 11.2 | G46: 0.0 | H46: 2.4 | I46: 157 | J46: 4.5 | K46: 0.1 | L46: 0.0 | M46: 0.0 | N46: 0.2 | O46: 2.0 | P46: 0.2 | Q46: 0.0 | R46: 0.0 | S46: 0.0 | T46: 1.1 | U46: 145.5 | V46: 78.1 | W46: 11.8 | X46: 10.0 | Y46: 83.2 | Z46: 0.9 | AA46: 30.2 | AB46: 15.9 | AC46: 63.2 | AD46: 0.4 | AE46: 0.0 | AF46: 0.1 | AG46: 4.3 | AH46: 8.7 | AI46: 0.4 | AK46: 558.47 | AL46: 443.07 | AM46: 900.67 | AN46: 989.77 | AO46: 297.08 | AP46: 540.62 | AQ46: 185.81 | AR46: 476.66 | AS46: 726.52 | AT46: 772.23 | AU46: 1023.57 | AV46: 308.15 | AW46: 863.35 | AX46: 1689.8 | AY46: 93.77 | AZ46: 572.1 | BA46: 548.4 | BB46: 405.95 | BC46: 144.77 | BD46: 0.06 | BE46: 0.03 | BF46: 0.01 | BG46: 0.03 | BH46: 0.04 | BI46: 0.18 | BJ46: 0 | BK46: 0.5 | BL46: 0 | BM46: 0.15 | BN46: 0 | BO46: 0 | BP46: 0 | BQ46: 0.03 | BR46: 0.05 | BS46: 0.41 | BT46: 0 | BU46: 0 | BV46: 0.03 | BW46: 0 | BX46: 0 | BY46: 0 | BZ46: 0 | CA46: 0 | CB46: 101.09 | CE46: 32.8 | CG46: 26.29 | CH46: 13.1 | CI46: 19.7 | CJ46: 2430.27 | CK46: 1502.53 | CL46: 1966.4 | CM46: 27.59 | CN46: 18.21 | CO46: 22.93 | CP46: 0 | CQ46: 0.5
B47: Итого за 'Горячий завтрак' | C47: =SUM(C41:C46) -> 640 | D47: =SUM(D41:D46) -> 22.4 | E47: 11.4 | F47: 22.4 | G47: 8.0 | H47: 73.6 | I47: 568 | J47: 7.7 | K47: 4.1 | L47: 0.0 | M47: 0.0 | N47: 18.1 | O47: 45.7 | P47: 9.8 | Q47: 0.0 | R47: 0.0 | S47: 0.7 | T47: 5.2 | U47: 726.7 | V47: 550.4 | W47: 69.8 | X47: 127.8 | Y47: 293.4 | Z47: 6.3 | AA47: 48.2 | AB47: 42.2 | AC47: 86.7 | AD47: 4.0 | AE47: 0.3 | AF47: 0.2 | AG47: 6.2 | AH47: 12.9 | AI47: 3.2 | AK47: 1057.16 | AL47: 873.79 | AM47: 1569.09 | AN47: 1424.2 | AO47: 512.75 | AP47: 884.99 | AQ47: 324.18 | AR47: 997.2 | AS47: 1172.04 | AT47: 1505.89 | AU47: 2021.07 | AV47: 531.02 | AW47: 1375.61 | AX47: 3995.16 | AY47: 93.77 | AZ47: 1187.66 | BA47: 1043.33 | BB47: 750.31 | BC47: 385.54 | BD47: 0.18 | BE47: 0.08 | BF47: 0.04 | BG47: 0.1 | BH47: 0.11 | BI47: 0.53 | BJ47: 0 | BK47: 2.13 | BL47: 0 | BM47: 0.72 | BN47: 0.03 | BO47: 0.04 | BP47: 0 | BQ47: 0.1 | BR47: 0.17 | BS47: 3.11 | BT47: 0.01 | BU47: 0 | BV47: 4.22 | BW47: 0.08 | BX47: 0 | BY47: 0 | BZ47: 0 | CA47: 0 | CB47: 562.77 | CD47: =$I$47/#REF!*100 ->  | CE47: 55.18 | CG47: 82.25 | CH47: 49.6 | CI47: 65.93 | CJ47: 6988.02 | CK47: 3319.89 | CL47: 5153.95 | CM47: 130.36 | CN47: 85.21 | CO47: 107.81 | CP47: 9.76 | CQ47: 1.45
B49: 5 ДЕНЬ
B50: Горячий завтрак
A51: ="-" -> - | B51: Хлеб пшеничный | C51: 30 | D51: 1.8 | E51: 0.0 | F51: 0.2 | G51: 0.2 | H51: 11.1 | I51: 54 | J51: 0.0 | K51: 0.0 | L51: 0.0 | M51: 0.0 | N51: 0.3 | O51: 10.7 | P51: 0.1 | Q51: 0.0 | R51: 0.0 | S51: 0.0 | T51: 0.5 | U51: 0.0 | V51: 0.0 | W51: 0.0 | X51: 0.0 | Y51: 0.0 | Z51: 0.0 | AA51: 0.0 | AB51: 0.0 | AC51: 0.0 | AD51: 0.0 | AE51: 0.0 | AF51: 0.0 | AG51: 0.0 | AH51: 0.0 | AI51: 0.0 | AK51: 95.8 | AL51: 99.7 | AM51: 152.7 | AN51: 50.6 | AO51: 30.0 | AP51: 60.0 | AQ51: 22.7 | AR51: 108.6 | AS51: 67.3 | AT51: 94.0 | AU51: 77.5 | AV51: 40.7 | AW51: 72.0 | AX51: 602.4 | AY51: 0.0 | AZ51: 196.3 | BA51: 85.4 | BB51: 56.6 | BC51: 44.9 | BD51: 0.0 | BE51: 0.0 | BF51: 0.0 | BG51: 0.0 | BH51: 0.0 | BI51: 0.0 | BJ51: 0.0 | BK51: 0.0 | BL51: 0.0 | BM51: 0.0 | BN51: 0.0 | BO51: 0.0 | BP51: 0.0 | BQ51: 0.0 | BR51: 0.0 | BS51: 0.0 | BT51: 0.0 | BU51: 0.0 | BV51: 0.1 | BW51: 0.0 | BX51: 0.0 | BY51: 0.0 | BZ51: 0.0 | CA51: 0.0 | CB51: 11.7 | CE51: 0.0 | CG51: 0.0 | CH51: 0.0 | CI51: 0.0 | CJ51: 570.0 | CK51: 219.6 | CL51: 394.8 | CM51: 4.6 | CN51: 4.6 | CO51: 4.6 | CP51: 0.0 | CQ51: 0.0
A52: ="-" -> - | B52: Хлеб ржаной | C52: 30 | D52: 1.8 | E52: 0.0 | F52: 0.4 | G52: 0.4 | H52: 12.5 | I52: 57 | J52: 0.1 | K52: 0.0 | L52: 0.0 | M52: 0.0 | N52: 0.4 | O52: 9.7 | P52: 2.5 | Q52: 0.0 | R52: 0.0 | S52: 0.3 | T52: 0.8 | U52: 183.0 | V52: 73.5 | W52: 10.5 | X52: 14.1 | Y52: 47.4 | Z52: 1.2 | AA52: 0.0 | AB52: 1.5 | AC52: 0.3 | AD52: 0.4 | AE52: 0.1 | AF52: 0.0 | AG52: 0.2 | AH52: 0.6 | AI52: 0.0 | AK52: 96.6 | AL52: 74.4 | AM52: 128.1 | AN52: 66.9 | AO52: 27.9 | AP52: 59.4 | AQ52: 24.0 | AR52: 111.3 | AS52: 89.1 | AT52: 87.3 | AU52: 139.2 | AV52: 37.2 | AW52: 93.0 | AX52: 467.7 | AY52: 0.0 | AZ52: 157.8 | BA52: 87.3 | BB52: 54.0 | BC52: 39.0 | BD52: 0.0 | BE52: 0.0 | BF52: 0.0 | BG52: 0.0 | BH52: 0.0 | BI52: 0.0 | BJ52: 0.0 | BK52: 0.0 | BL52: 0.0 | BM52: 0.0 | BN52: 0.0 | BO52: 0.0 | BP52: 0.0 | BQ52: 0.0 | BR52: 0.0 | BS52: 0.0 | BT52: 0.0 | BU52: 0.0 | BV52: 0.1 | BW52: 0.0 | BX52: 0.0 | BY52: 0.0 | BZ52: 0.0 | CA52: 0.0 | CB52: 14.1 | CE52: 0.3 | CG52: 3.0 | CH52: 3.0 | CI52: 3.0 | CJ52: 570.0 | CK52: 219.6 | CL52: 394.8 | CM52: 5.7 | CN52: 4.7 | CO52: 5.2 | CP52: 0.0 | CQ52: 0.0
A53: ="6/10" -> 6/10 | B53: Компот из сухофруктов | C53: 200 | D53: 1.0 | E53: 0.0 | F53: 0.1 | G53: 0.1 | H53: 23.2 | I53: 88 | J53: 0.0 | K53: 0.0 | L53: 0.0 | M53: 0.0 | N53: 19.2 | O53: 0.6 | P53: 3.4 | Q53: 0.0 | R53: 0.0 | S53: 0.3 | T53: 0.8 | U53: 3.5 | V53: 340.3 | W53: 31.3 | X53: 20.0 | Y53: 27.2 | Z53: 0.7 | AA53: 0.0 | AB53: 630.0 | AC53: 116.6 | AD53: 1.1 | AE53: 0.0 | AF53: 0.1 | AG53: 0.5 | AH53: 0.8 | AI53: 0.5 | AK53: 0.01 | AL53: 0.01 | AM53: 0.01 | AN53: 0.02 | AO53: 0 | AP53: 0.01 | AQ53: 0 | AR53: 0.01 | AS53: 0.01 | AT53: 0.01 | AU53: 0.06 | AV53: 0 | AW53: 0.01 | AX53: 0.03 | AY53: 0 | AZ53: 0.02 | BA53: 0.01 | BB53: 0.01 | BC53: 0 | BD53: 0 | BE53: 0 | BF53: 0 | BG53: 0 | BH53: 0 | BI53: 0 | BJ53: 0 | BK53: 0 | BL53: 0 | BM53: 0 | BN53: 0 | BO53: 0 | BP53: 0 | BQ53: 0 | BR53: 0 | BS53: 0.01 | BT53: 0 | BU53: 0 | BV53: 0.01 | BW53: 0 | BX53: 0 | BY53: 0 | BZ53: 0 | CA53: 0 | CB53: 214.01 | CE53: 105 | CG53: 4.39 | CH53: 4.39 | CI53: 4.39 | CJ53: 505 | CK53: 192.2 | CL53: 348.6 | CM53: 46.6 | CN53: 27.7 | CO53: 37.15 | CP53: 10 | CQ53: 0
A54: ="17/4" -> 17/4 | B54: Каша молочная ассорти (рис, пшено) с маслом сливочным | C54: 180 | D54: 5.3 | E54: 2.7 | F54: 5.5 | G54: 0.7 | H54: 28.4 | I54: 183 | J54: 3.8 | K54: 0.1 | L54: 0.0 | M54: 0.0 | N54: 8.5 | O54: 19.0 | P54: 0.9 | Q54: 0.0 | R54: 0.0 | S54: 0.1 | T54: 1.4 | U54: 224.2 | V54: 162.9 | W54: 104.5 | X54: 29.5 | Y54: 125.6 | Z54: 0.6 | AA54: 21.8 | AB54: 20.9 | AC54: 41.0 | AD54: 0.2 | AE54: 0.1 | AF54: 0.1 | AG54: 0.5 | AH54: 2.0 | AI54: 0.5 | AK54: 130.62 | AL54: 112.73 | AM54: 328.47 | AN54: 81.19 | AO54: 68.6 | AP54: 96.74 | AQ54: 43.44 | AR54: 141.96 | AS54: 223.81 | AT54: 134.13 | AU54: 175.42 | AV54: 64.85 | AW54: 89.85 | AX54: 515.13 | AY54: 0 | AZ54: 174.11 | BA54: 156.68 | BB54: 104.48 | BC54: 46.74 | BD54: 0.11 | BE54: 0.05 | BF54: 0.03 | BG54: 0.06 | BH54: 0.07 | BI54: 0.32 | BJ54: 0 | BK54: 0.93 | BL54: 0 | BM54: 0.28 | BN54: 0 | BO54: 0 | BP54: 0 | BQ54: 0.06 | BR54: 0.09 | BS54: 0.83 | BT54: 0 | BU54: 0 | BV54: 0.38 | BW54: 0.01 | BX54: 0 | BY54: 0 | BZ54: 0 | CA54: 0 | CB54: 150.12 | CE54: 25.3 | CG54: 28.87 | CH54: 13.31 | CI54: 21.09 | CJ54: 1807.26 | CK54: 809.43 | CL54: 1308.34 | CM54: 30.52 | CN54: 13.78 | CO54: 22.15 | CP54: 4.5 | CQ54: 0.45
A55: ="7" -> 7 | B55: Биточки (котлеты) из мяса бройлер-цыплят | C55: 100 | D55: 15.1 | E55: 12.8 | F55: 14.2 | G55: 4.0 | H55: 13.1 | I55: 241 | J55: 3.9 | K55: 3.3 | L55: 0.0 | M55: 0.0 | N55: 0.5 | O55: 11.7 | P55: 0.9 | Q55: 0.0 | R55: 0.0 | S55: 0.1 | T55: 1.7 | U55: 254.8 | V55: 150.1 | W55: 16.6 | X55: 21.3 | Y55: 134.4 | Z55: 1.9 | AA55: 41.4 | AB55: 7.9 | AC55: 53.4 | AD55: 2.9 | AE55: 0.1 | AF55: 0.1 | AG55: 5.6 | AH55: 10.1 | AI55: 0.3 | AK55: 672.32 | AL55: 545.24 | AM55: 1081.56 | AN55: 1140.93 | AO55: 348.59 | AP55: 636.03 | AQ55: 219.2 | AR55: 586.26 | AS55: 850.48 | AT55: 915.9 | AU55: 1191.74 | AV55: 365.37 | AW55: 1007.87 | AX55: 2165.26 | AY55: 106.15 | AZ55: 730.84 | BA55: 653.58 | BB55: 483.61 | BC55: 183.62 | BD55: 0 | BE55: 0 | BF55: 0 | BG55: 0 | BH55: 0 | BI55: 0 | BJ55: 0 | BK55: 0.25 | BL55: 0 | BM55: 0.15 | BN55: 0.01 | BO55: 0.03 | BP55: 0 | BQ55: 0 | BR55: 0 | BS55: 0.9 | BT55: 0 | BU55: 0 | BV55: 2.26 | BW55: 0 | BX55: 0 | BY55: 0 | BZ55: 0 | CA55: 0 | CB55: 77.69 | CE55: 42.76 | CG55: 25.33 | CH55: 12 | CI55: 18.66 | CJ55: 2703.27 | CK55: 1650.59 | CL55: 2176.93 | CM55: 17.9 | CN55: 13.75 | CO55: 15.83 | CP55: 0 | CQ55: 0.5
B56: Итого за 'Горячий завтрак' | C56: =SUM(C51:C55) -> 540 | D56: =SUM(D51:D55) -> 25.0 | E56: 15.5 | F56: 20.4 | G56: 5.4 | H56: 88.3 | I56: 623 | J56: 7.8 | K56: 3.4 | L56: 0.0 | M56: 0.0 | N56: 28.9 | O56: 51.6 | P56: 7.8 | Q56: 0.0 | R56: 0.0 | S56: 0.8 | T56: 5.2 | U56: 665.4 | V56: 726.8 | W56: 162.9 | X56: 84.8 | Y56: 334.6 | Z56: 4.4 | AA56: 63.3 | AB56: 660.3 | AC56: 211.2 | AD56: 4.6 | AE56: 0.2 | AF56: 0.3 | AG56: 6.8 | AH56: 13.4 | AI56: 1.2 | AK56: 995.33 | AL56: 832.08 | AM56: 1690.82 | AN56: 1339.67 | AO56: 475.11 | AP56: 852.2 | AQ56: 309.36 | AR56: 948.11 | AS56: 1230.74 | AT56: 1231.3 | AU56: 1583.93 | AV56: 508.14 | AW56: 1262.76 | AX56: 3750.5 | AY56: 106.15 | AZ56: 1259.03 | BA56: 982.92 | BB56: 698.73 | BC56: 314.25 | BD56: 0.11 | BE56: 0.05 | BF56: 0.03 | BG56: 0.06 | BH56: 0.07 | BI56: 0.32 | BJ56: 0 | BK56: 1.25 | BL56: 0 | BM56: 0.44 | BN56: 0.02 | BO56: 0.03 | BP56: 0 | BQ56: 0.06 | BR56: 0.1 | BS56: 1.8 | BT56: 0 | BU56: 0 | BV56: 2.87 | BW56: 0.04 | BX56: 0 | BY56: 0 | BZ56: 0 | CA56: 0 | CB56: 467.64 | CD56: =$I$56/#REF!*100 ->  | CE56: 173.3 | CG56: 60.59 | CH56: 31.69 | CI56: 46.14 | CJ56: 6345.52 | CK56: 3164.61 | CL56: 4755.07 | CM56: 106.41 | CN56: 66 | CO56: 86.21 | CP56: 14.5 | CQ56: 0.95
B58: 6 ДЕНЬ
B59: Горячий завтрак
A60: ="-" -> - | B60: Хлеб пшеничный | C60: 30 | D60: 1.8 | E60: 0.0 | F60: 0.2 | G60: 0.2 | H60: 11.1 | I60: 54 | J60: 0.0 | K60: 0.0 | L60: 0.0 | M60: 0.0 | N60: 0.3 | O60: 10.7 | P60: 0.1 | Q60: 0.0 | R60: 0.0 | S60: 0.0 | T60: 0.5 | U60: 0.0 | V60: 0.0 | W60: 0.0 | X60: 0.0 | Y60: 0.0 | Z60: 0.0 | AA60: 0.0 | AB60: 0.0 | AC60: 0.0 | AD60: 0.0 | AE60: 0.0 | AF60: 0.0 | AG60: 0.0 | AH60: 0.0 | AI60: 0.0 | AK60: 95.8 | AL60: 99.7 | AM60: 152.7 | AN60: 50.6 | AO60: 30.0 | AP60: 60.0 | AQ60: 22.7 | AR60: 108.6 | AS60: 67.3 | AT60: 94.0 | AU60: 77.5 | AV60: 40.7 | AW60: 72.0 | AX60: 602.4 | AY60: 0.0 | AZ60: 196.3 | BA60: 85.4 | BB60: 56.6 | BC60: 44.9 | BD60: 0.0 | BE60: 0.0 | BF60: 0.0 | BG60: 0.0 | BH60: 0.0 | BI60: 0.0 | BJ60: 0.0 | BK60: 0.0 | BL60: 0.0 | BM60: 0.0 | BN60: 0.0 | BO60: 0.0 | BP60: 0.0 | BQ60: 0.0 | BR60: 0.0 | BS60: 0.0 | BT60: 0.0 | BU60: 0.0 | BV60: 0.1 | BW60: 0.0 | BX60: 0.0 | BY60: 0.0 | BZ60: 0.0 | CA60: 0.0 | CB60: 11.7 | CE60: 0.0 | CG60: 0.0 | CH60: 0.0 | CI60: 0.0 | CJ60: 570.0 | CK60: 219.6 | CL60: 394.8 | CM60: 4.6 | CN60: 4.6 | CO60: 4.6 | CP60: 0.0 | CQ60: 0.0
A61: ="-" -> - | B61: Хлеб ржаной | C61: 30 | D61: 1.8 | E61: 0.0 | F61: 0.4 | G61: 0.4 | H61: 12.5 | I61: 57 | J61: 0.1 | K61: 0.0 | L61: 0.0 | M61: 0.0 | N61: 0.4 | O61: 9.7 | P61: 2.5 | Q61: 0.0 | R61: 0.0 | S61: 0.3 | T61: 0.8 | U61: 183.0 | V61: 73.5 | W61: 10.5 | X61: 14.1 | Y61: 47.4 | Z61: 1.2 | AA61: 0.0 | AB61: 1.5 | AC61: 0.3 | AD61: 0.4 | AE61: 0.1 | AF61: 0.0 | AG61: 0.2 | AH61: 0.6 | AI61: 0.0 | AK61: 96.6 | AL61: 74.4 | AM61: 128.1 | AN61: 66.9 | AO61: 27.9 | AP61: 59.4 | AQ61: 24.0 | AR61: 111.3 | AS61: 89.1 | AT61: 87.3 | AU61: 139.2 | AV61: 37.2 | AW61: 93.0 | AX61: 467.7 | AY61: 0.0 | AZ61: 157.8 | BA61: 87.3 | BB61: 54.0 | BC61: 39.0 | BD61: 0.0 | BE61: 0.0 | BF61: 0.0 | BG61: 0.0 | BH61: 0.0 | BI61: 0.0 | BJ61: 0.0 | BK61: 0.0 | BL61: 0.0 | BM61: 0.0 | BN61: 0.0 | BO61: 0.0 | BP61: 0.0 | BQ61: 0.0 | BR61: 0.0 | BS61: 0.0 | BT61: 0.0 | BU61: 0.0 | BV61: 0.1 | BW61: 0.0 | BX61: 0.0 | BY61: 0.0 | BZ61: 0.0 | CA61: 0.0 | CB61: 14.1 | CE61: 0.3 | CG61: 3.0 | CH61: 3.0 | CI61: 3.0 | CJ61: 570.0 | CK61: 219.6 | CL61: 394.8 | CM61: 5.7 | CN61: 4.7 | CO61: 5.2 | CP61: 0.0 | CQ61: 0.0
A62: ="4/13" -> 4/13 | B62: Сыр (порциями) | C62: 10 | D62: 2.6 | E62: 2.6 | F62: 2.7 | G62: 0.0 | H62: 0.0 | I62: 35 | J62: 1.5 | K62: 0.0 | L62: 0.0 | M62: 0.0 | N62: 0.0 | O62: 0.0 | P62: 0.0 | Q62: 0.0 | R62: 0.0 | S62: 0.2 | T62: 0.4 | U62: 110.0 | V62: 10.0 | W62: 100.0 | X62: 5.5 | Y62: 60.0 | Z62: 0.1 | AA62: 21.0 | AB62: 17.0 | AC62: 23.8 | AD62: 0.0 | AE62: 0.0 | AF62: 0.0 | AG62: 0.0 | AH62: 0.7 | AI62: 0.1 | AK62: 157 | AL62: 117 | AM62: 230 | AN62: 158 | AO62: 56 | AP62: 95 | AQ62: 70 | AR62: 134 | AS62: 76 | AT62: 87 | AU62: 156 | AV62: 70 | AW62: 51 | AX62: 517 | AY62: 0 | AZ62: 273 | BA62: 129 | BB62: 139 | BC62: 21.5 | BD62: 0 | BE62: 0.01 | BF62: 0.04 | BG62: 0.11 | BH62: 0.13 | BI62: 0.33 | BJ62: 0.04 | BK62: 0.7 | BL62: 0.01 | BM62: 0.16 | BN62: 0.01 | BO62: 0 | BP62: 0 | BQ62: 0.05 | BR62: 0.07 | BS62: 0.52 | BT62: 0 | BU62: 0 | BV62: 0.07 | BW62: 0 | BX62: 0 | BY62: 0 | BZ62: 0 | CA62: 0 | CB62: 4.08 | CE62: 23.83 | CG62: 5 | CH62: 5 | CI62: 5 | CJ62: 5000 | CK62: 3700 | CL62: 4350 | CM62: 15.3 | CN62: 9.7 | CO62: 12.5 | CP62: 0 | CQ62: 0
A63: ="27/10" -> 27/10 | B63: Чай полусладкий | C63: 200 | D63: 0.2 | E63: 0.0 | F63: 0.1 | G63: 0.1 | H63: 5.0 | I63: 20 | J63: 0.0 | K63: 0.0 | L63: 0.0 | M63: 0.0 | N63: 4.9 | O63: 0.0 | P63: 0.1 | Q63: 0.0 | R63: 0.0 | S63: 0.0 | T63: 0.1 | U63: 0.1 | V63: 0.2 | W63: 0.2 | X63: 0.0 | Y63: 0.0 | Z63: 0.0 | AA63: 0.0 | AB63: 0.0 | AC63: 0.0 | AD63: 0.0 | AE63: 0.0 | AF63: 0.0 | AG63: 0.0 | AH63: 0.0 | AI63: 0.0 | AK63: 0 | AL63: 0 | AM63: 0 | AN63: 0 | AO63: 0 | AP63: 0 | AQ63: 0 | AR63: 0 | AS63: 0 | AT63: 0 | AU63: 0 | AV63: 0 | AW63: 0 | AX63: 0 | AY63: 0 | AZ63: 0 | BA63: 0 | BB63: 0 | BC63: 0 | BD63: 0 | BE63: 0 | BF63: 0 | BG63: 0 | BH63: 0 | BI63: 0 | BJ63: 0 | BK63: 0 | BL63: 0 | BM63: 0 | BN63: 0 | BO63: 0 | BP63: 0 | BQ63: 0 | BR63: 0 | BS63: 0 | BT63: 0 | BU63: 0 | BV63: 0 | BW63: 0 | BX63: 0 | BY63: 0 | BZ63: 0 | CA63: 0 | CB63: 200.09 | CE63: 0 | CG63: 4.1 | CH63: 4.1 | CI63: 4.1 | CJ63: 442.5 | CK63: 174 | CL63: 308.25 | CM63: 44.01 | CN63: 26.01 | CO63: 35.01 | CP63: 5 | CQ63: 0
A64: ="46/3" -> 46/3 | B64: Макаронные изделия отварные с маслом сливочным | C64: 180 | D64: 6.4 | E64: 0.0 | F64: 3.6 | G64: 0.8 | H64: 40.9 | I64: 221 | J64: 2.2 | K64: 0.1 | L64: 0.0 | M64: 0.0 | N64: 1.2 | O64: 37.7 | P64: 2.1 | Q64: 0.0 | R64: 0.0 | S64: 0.0 | T64: 0.8 | U64: 176.7 | V64: 67.5 | W64: 12.6 | X64: 8.6 | Y64: 47.8 | Z64: 0.9 | AA64: 10.8 | AB64: 10.8 | AC64: 20.3 | AD64: 1.0 | AE64: 0.1 | AF64: 0.0 | AG64: 0.6 | AH64: 1.8 | AI64: 0.0 | AK64: 275.61 | AL64: 251.98 | AM64: 472.07 | AN64: 147.45 | AO64: 89.89 | AP64: 182.63 | AQ64: 59.92 | AR64: 292.87 | AS64: 193.67 | AT64: 233.51 | AU64: 200.31 | AV64: 117.69 | AW64: 204.66 | AX64: 1797.43 | AY64: 0 | AZ64: 566.38 | BA64: 293.38 | BB64: 147.32 | BC64: 116.63 | BD64: 0.11 | BE64: 0.05 | BF64: 0.03 | BG64: 0.06 | BH64: 0.07 | BI64: 0.31 | BJ64: 0 | BK64: 0.97 | BL64: 0 | BM64: 0.28 | BN64: 0 | BO64: 0 | BP64: 0 | BQ64: 0.06 | BR64: 0.1 | BS64: 0.72 | BT64: 0 | BU64: 0 | BV64: 0.29 | BW64: 0.01 | BX64: 0 | BY64: 0 | BZ64: 0 | CA64: 0 | CB64: 376.28 | CE64: 12.6 | CG64: 19.1 | CH64: 9.96 | CI64: 14.53 | CJ64: 443.79 | CK64: 438.48 | CL64: 441.14 | CM64: 11.24 | CN64: 5.72 | CO64: 8.48 | CP64: 0 | CQ64: 0.54
A65: ="12/7" -> 12/7 | B65: Биточки (котлеты) из рыбы минтай | C65: 100 | D65: 12.2 | E65: 10.0 | F65: 6.4 | G65: 5.8 | H65: 14.1 | I65: 162 | J65: 0.9 | K65: 3.9 | L65: 0.0 | M65: 0.0 | N65: 0.5 | O65: 12.8 | P65: 0.8 | Q65: 0.0 | R65: 0.0 | S65: 0.1 | T65: 2.0 | U65: 250.8 | V65: 227.7 | W65: 32.1 | X65: 43.3 | Y65: 179.9 | Z65: 1.2 | AA65: 6.6 | AB65: 0.4 | AC65: 6.7 | AD65: 3.1 | AE65: 0.1 | AF65: 0.1 | AG65: 1.3 | AH65: 3.7 | AI65: 0.3 | AK65: 62.76 | AL65: 65.32 | AM65: 100.04 | AN65: 33.17 | AO65: 19.67 | AP65: 39.33 | AQ65: 14.88 | AR65: 71.14 | AS65: 44.12 | AT65: 61.56 | AU65: 50.79 | AV65: 26.68 | AW65: 47.2 | AX65: 394.67 | AY65: 0 | AZ65: 128.59 | BA65: 55.92 | BB65: 37.11 | BC65: 29.41 | BD65: 0 | BE65: 0 | BF65: 0 | BG65: 0 | BH65: 0 | BI65: 0 | BJ65: 0 | BK65: 0.36 | BL65: 0 | BM65: 0.23 | BN65: 0.02 | BO65: 0.04 | BP65: 0 | BQ65: 0 | BR65: 0 | BS65: 1.32 | BT65: 0 | BU65: 0 | BV65: 3.32 | BW65: 0 | BX65: 0 | BY65: 0 | BZ65: 0 | CA65: 0 | CB65: 85.98 | CE65: 6.67 | CG65: 123 | CH65: 25.2 | CI65: 74.1 | CJ65: 1235 | CK65: 430.76 | CL65: 832.88 | CM65: 29.47 | CN65: 29.47 | CO65: 29.47 | CP65: 0 | CQ65: 0.6
B66: Итого за 'Горячий завтрак' | C66: =SUM(C60:C65) -> 550 | D66: =SUM(D60:D65) -> 25.0 | E66: 12.6 | F66: 13.2 | G66: 7.2 | H66: 83.6 | I66: 550 | J66: 4.7 | K66: 4.0 | L66: 0.0 | M66: 0.0 | N66: 7.2 | O66: 70.8 | P66: 5.6 | Q66: 0.0 | R66: 0.0 | S66: 0.6 | T66: 4.6 | U66: 720.6 | V66: 378.9 | W66: 155.4 | X66: 71.5 | Y66: 335.1 | Z66: 3.3 | AA66: 38.4 | AB66: 29.7 | AC66: 51.0 | AD66: 4.5 | AE66: 0.2 | AF66: 0.2 | AG66: 2.1 | AH66: 6.7 | AI66: 0.4 | AK66: 687.75 | AL66: 608.41 | AM66: 1082.89 | AN66: 456.16 | AO66: 223.47 | AP66: 436.39 | AQ66: 191.51 | AR66: 717.88 | AS66: 470.22 | AT66: 563.33 | AU66: 623.81 | AV66: 292.28 | AW66: 467.9 | AX66: 3779.18 | AY66: 0 | AZ66: 1322.04 | BA66: 650.94 | BB66: 434.07 | BC66: 251.43 | BD66: 0.11 | BE66: 0.06 | BF66: 0.07 | BG66: 0.17 | BH66: 0.2 | BI66: 0.65 | BJ66: 0.04 | BK66: 2.09 | BL66: 0.01 | BM66: 0.67 | BN66: 0.03 | BO66: 0.04 | BP66: 0 | BQ66: 0.11 | BR66: 0.17 | BS66: 2.62 | BT66: 0 | BU66: 0 | BV66: 3.91 | BW66: 0.04 | BX66: 0 | BY66: 0 | BZ66: 0 | CA66: 0 | CB66: 692.26 | CD66: =$I$66/#REF!*100 ->  | CE66: 43.35 | CG66: 156.19 | CH66: 49.26 | CI66: 102.73 | CJ66: 9021.29 | CK66: 5475.24 | CL66: 7248.27 | CM66: 117.11 | CN66: 86.39 | CO66: 101.75 | CP66: 5 | CQ66: 1.14
B68: 7 ДЕНЬ
B69: Горячий завтрак
A70: ="-" -> - | B70: Хлеб пшеничный | C70: 30 | D70: 1.8 | E70: 0.0 | F70: 0.2 | G70: 0.2 | H70: 11.1 | I70: 54 | J70: 0.0 | K70: 0.0 | L70: 0.0 | M70: 0.0 | N70: 0.3 | O70: 10.7 | P70: 0.1 | Q70: 0.0 | R70: 0.0 | S70: 0.0 | T70: 0.5 | U70: 0.0 | V70: 0.0 | W70: 0.0 | X70: 0.0 | Y70: 0.0 | Z70: 0.0 | AA70: 0.0 | AB70: 0.0 | AC70: 0.0 | AD70: 0.0 | AE70: 0.0 | AF70: 0.0 | AG70: 0.0 | AH70: 0.0 | AI70: 0.0 | AK70: 95.8 | AL70: 99.7 | AM70: 152.7 | AN70: 50.6 | AO70: 30.0 | AP70: 60.0 | AQ70: 22.7 | AR70: 108.6 | AS70: 67.3 | AT70: 94.0 | AU70: 77.5 | AV70: 40.7 | AW70: 72.0 | AX70: 602.4 | AY70: 0.0 | AZ70: 196.3 | BA70: 85.4 | BB70: 56.6 | BC70: 44.9 | BD70: 0.0 | BE70: 0.0 | BF70: 0.0 | BG70: 0.0 | BH70: 0.0 | BI70: 0.0 | BJ70: 0.0 | BK70: 0.0 | BL70: 0.0 | BM70: 0.0 | BN70: 0.0 | BO70: 0.0 | BP70: 0.0 | BQ70: 0.0 | BR70: 0.0 | BS70: 0.0 | BT70: 0.0 | BU70: 0.0 | BV70: 0.1 | BW70: 0.0 | BX70: 0.0 | BY70: 0.0 | BZ70: 0.0 | CA70: 0.0 | CB70: 11.7 | CE70: 0.0 | CG70: 0.0 | CH70: 0.0 | CI70: 0.0 | CJ70: 570.0 | CK70: 219.6 | CL70: 394.8 | CM70: 4.6 | CN70: 4.6 | CO70: 4.6 | CP70: 0.0 | CQ70: 0.0
A71: ="-" -> - | B71: Хлеб ржаной | C71: 30 | D71: 1.8 | E71: 0.0 | F71: 0.4 | G71: 0.4 | H71: 12.5 | I71: 57 | J71: 0.1 | K71: 0.0 | L71: 0.0 | M71: 0.0 | N71: 0.4 | O71: 9.7 | P71: 2.5 | Q71: 0.0 | R71: 0.0 | S71: 0.3 | T71: 0.8 | U71: 183.0 | V71: 73.5 | W71: 10.5 | X71: 14.1 | Y71: 47.4 | Z71: 1.2 | AA71: 0.0 | AB71: 1.5 | AC71: 0.3 | AD71: 0.4 | AE71: 0.1 | AF71: 0.0 | AG71: 0.2 | AH71: 0.6 | AI71: 0.0 | AK71: 96.6 | AL71: 74.4 | AM71: 128.1 | AN71: 66.9 | AO71: 27.9 | AP71: 59.4 | AQ71: 24.0 | AR71: 111.3 | AS71: 89.1 | AT71: 87.3 | AU71: 139.2 | AV71: 37.2 | AW71: 93.0 | AX71: 467.7 | AY71: 0.0 | AZ71: 157.8 | BA71: 87.3 | BB71: 54.0 | BC71: 39.0 | BD71: 0.0 | BE71: 0.0 | BF71: 0.0 | BG71: 0.0 | BH71: 0.0 | BI71: 0.0 | BJ71: 0.0 | BK71: 0.0 | BL71: 0.0 | BM71: 0.0 | BN71: 0.0 | BO71: 0.0 | BP71: 0.0 | BQ71: 0.0 | BR71: 0.0 | BS71: 0.0 | BT71: 0.0 | BU71: 0.0 | BV71: 0.1 | BW71: 0.0 | BX71: 0.0 | BY71: 0.0 | BZ71: 0.0 | CA71: 0.0 | CB71: 14.1 | CE71: 0.3 | CG71: 3.0 | CH71: 3.0 | CI71: 3.0 | CJ71: 570.0 | CK71: 219.6 | CL71: 394.8 | CM71: 5.7 | CN71: 4.7 | CO71: 5.2 | CP71: 0.0 | CQ71: 0.0
A72: ="27/10" -> 27/10 | B72: Чай сладкий | C72: 200 | D72: 0.2 | E72: 0.0 | F72: 0.1 | G72: 0.1 | H72: 9.9 | I72: 39 | J72: 0.0 | K72: 0.0 | L72: 0.0 | M72: 0.0 | N72: 9.8 | O72: 0.0 | P72: 0.1 | Q72: 0.0 | R72: 0.0 | S72: 0.0 | T72: 0.1 | U72: 0.1 | V72: 0.3 | W72: 0.3 | X72: 0.0 | Y72: 0.0 | Z72: 0.0 | AA72: 0.0 | AB72: 0.0 | AC72: 0.0 | AD72: 0.0 | AE72: 0.0 | AF72: 0.0 | AG72: 0.0 | AH72: 0.0 | AI72: 0.0 | AK72: 0 | AL72: 0 | AM72: 0 | AN72: 0 | AO72: 0 | AP72: 0 | AQ72: 0 | AR72: 0 | AS72: 0 | AT72: 0 | AU72: 0 | AV72: 0 | AW72: 0 | AX72: 0 | AY72: 0 | AZ72: 0 | BA72: 0 | BB72: 0 | BC72: 0 | BD72: 0 | BE72: 0 | BF72: 0 | BG72: 0 | BH72: 0 | BI72: 0 | BJ72: 0 | BK72: 0 | BL72: 0 | BM72: 0 | BN72: 0 | BO72: 0 | BP72: 0 | BQ72: 0 | BR72: 0 | BS72: 0 | BT72: 0 | BU72: 0 | BV72: 0 | BW72: 0 | BX72: 0 | BY72: 0 | BZ72: 0 | CA72: 0 | CB72: 200.1 | CE72: 0 | CG72: 4.19 | CH72: 4.19 | CI72: 4.19 | CJ72: 485 | CK72: 184 | CL72: 334.5 | CM72: 44.42 | CN72: 26.42 | CO72: 35.42 | CP72: 10 | CQ72: 0
A73: ="6/1" -> 6/1 | B73: Салат из белокочанной капусты с морковью и растительным маслом | C73: 100 | D73: 1.5 | E73: 0.0 | F73: 6.0 | G73: 6.0 | H73: 9.3 | I73: 93 | J73: 0.8 | K73: 3.9 | L73: 0.0 | M73: 0.0 | N73: 7.4 | O73: 0.1 | P73: 1.9 | Q73: 0.0 | R73: 0.0 | S73: 0.3 | T73: 1.2 | U73: 202.6 | V73: 252.0 | W73: 41.4 | X73: 17.8 | Y73: 31.9 | Z73: 0.6 | AA73: 0.0 | AB73: 1896.3 | AC73: 322.3 | AD73: 2.8 | AE73: 0.0 | AF73: 0.0 | AG73: 0.7 | AH73: 0.9 | AI73: 33.9 | AK73: 49.37 | AL73: 42.24 | AM73: 53.94 | AN73: 50.79 | AO73: 17.58 | AP73: 38.09 | AQ73: 8.6 | AR73: 46.02 | AS73: 59.71 | AT73: 68.9 | AU73: 147.59 | AV73: 22.78 | AW73: 39.09 | AX73: 238.97 | AY73: 0 | AZ73: 48.07 | BA73: 48.54 | BB73: 39.57 | BC73: 16.58 | BD73: 0 | BE73: 0 | BF73: 0 | BG73: 0 | BH73: 0 | BI73: 0 | BJ73: 0 | BK73: 0.36 | BL73: 0 | BM73: 0.24 | BN73: 0.02 | BO73: 0.04 | BP73: 0 | BQ73: 0 | BR73: 0 | BS73: 1.39 | BT73: 0 | BU73: 0 | BV73: 3.47 | BW73: 0 | BX73: 0 | BY73: 0 | BZ73: 0 | CA73: 0 | CB73: 81.89 | CE73: 316.05 | CG73: 27.1 | CH73: 12.42 | CI73: 19.76 | CJ73: 812.67 | CK73: 194.59 | CL73: 503.63 | CM73: 13.05 | CN73: 12.32 | CO73: 12.69 | CP73: 3 | CQ73: 0.5
A74: ="3/3" -> 3/3 | B74: Картофельное пюре с маслом сливочным | C74: 180 | D74: 3.7 | E74: 0.7 | F74: 4.3 | G74: 0.6 | H74: 26.5 | I74: 158 | J74: 2.7 | K74: 0.1 | L74: 0.0 | M74: 0.0 | N74: 2.6 | O74: 21.9 | P74: 2.0 | Q74: 0.0 | R74: 0.0 | S74: 0.4 | T74: 2.3 | U74: 93.4 | V74: 763.5 | W74: 40.8 | X74: 36.4 | Y74: 104.2 | Z74: 1.4 | AA74: 22.5 | AB74: 40.9 | AC74: 30.1 | AD74: 0.2 | AE74: 0.1 | AF74: 0.1 | AG74: 1.6 | AH74: 3.1 | AI74: 6.5 | AK74: 40.27 | AL74: 63.31 | AM74: 80.2 | AN74: 94.26 | AO74: 16.12 | AP74: 63.57 | AQ74: 32.62 | AR74: 64.89 | AS74: 90.8 | AT74: 247.35 | AU74: 110.17 | AV74: 23.04 | AW74: 64.13 | AX74: 344.65 | AY74: 0 | AZ74: 48.22 | BA74: 43.86 | BB74: 47.97 | BC74: 20.43 | BD74: 0.11 | BE74: 0.05 | BF74: 0.03 | BG74: 0.06 | BH74: 0.07 | BI74: 0.34 | BJ74: 0 | BK74: 1.05 | BL74: 0 | BM74: 0.31 | BN74: 0 | BO74: 0 | BP74: 0 | BQ74: 0.07 | BR74: 0.11 | BS74: 1.02 | BT74: 0 | BU74: 0 | BV74: 0.17 | BW74: 0 | BX74: 0 | BY74: 0 | BZ74: 0 | CA74: 0 | CB74: 148.48 | CE74: 29.32 | CG74: 21.11 | CH74: 14 | CI74: 17.55 | CJ74: 722.47 | CK74: 635.04 | CL74: 678.76 | CM74: 29.29 | CN74: 4.31 | CO74: 16.8 | CP74: 0 | CQ74: 0.54
A75: ="1/27" -> 1/27 | B75: Котлеты "Крестьянские" из мясо говядины и птиц | C75: 100 | D75: 15.9 | E75: 14.8 | F75: 18.4 | G75: 6.2 | H75: 13.7 | I75: 283 | J75: 6.1 | K75: 34.9 | L75: 0.0 | M75: 0.0 | N75: 0.9 | O75: 11.3 | P75: 1.6 | Q75: 0.0 | R75: 0.0 | S75: 0.1 | T75: 1.8 | U75: 290.2 | V75: 234.6 | W75: 17.9 | X75: 23.9 | Y75: 162.6 | Z75: 2.3 | AA75: 35.7 | AB75: 5.0 | AC75: 36.8 | AD75: 3.3 | AE75: 0.1 | AF75: 0.1 | AG75: 5.0 | AH75: 9.6 | AI75: 0.6 | AK75: 810.3 | AL75: 643.83 | AM75: 1246.46 | AN75: 1607.14 | AO75: 388.63 | AP75: 707.35 | AQ75: 223.88 | AR75: 678.6 | AS75: 947.15 | AT75: 985.58 | AU75: 1399.78 | AV75: 483.07 | AW75: 1014.67 | AX75: 2585.47 | AY75: 163.57 | AZ75: 764.34 | BA75: 717.57 | BB75: 554.3 | BC75: 217.61 | BD75: 0 | BE75: 0 | BF75: 0 | BG75: 0 | BH75: 0 | BI75: 0 | BJ75: 0 | BK75: 0.38 | BL75: 0 | BM75: 0.24 | BN75: 0.02 | BO75: 0.04 | BP75: 0 | BQ75: 0 | BR75: 0 | BS75: 1.41 | BT75: 0 | BU75: 0 | BV75: 3.53 | BW75: 0 | BX75: 0 | BY75: 0 | BZ75: 0 | CA75: 0 | CB75: 80.22 | CE75: 36.53 | CG75: 26.08 | CH75: 13.79 | CI75: 19.94 | CJ75: 3013.47 | CK75: 1828.19 | CL75: 2420.83 | CM75: 20.88 | CN75: 14.73 | CO75: 17.8 | CP75: 0 | CQ75: 0.5
B76: Итого за 'Горячий завтрак' | C76: =SUM(C70:C75) -> 640 | D76: =SUM(D70:D75) -> 25.0 | E76: 15.4 | F76: 29.2 | G76: 13.4 | H76: 83.0 | I76: 683 | J76: 9.6 | K76: 38.9 | L76: 0.0 | M76: 0.0 | N76: 21.4 | O76: 53.6 | P76: 8.1 | Q76: 0.0 | R76: 0.0 | S76: 1.0 | T76: 6.6 | U76: 769.3 | V76: 1323.9 | W76: 110.9 | X76: 92.2 | Y76: 346.1 | Z76: 5.4 | AA76: 58.2 | AB76: 1943.7 | AC76: 389.4 | AD76: 6.7 | AE76: 0.3 | AF76: 0.3 | AG76: 7.5 | AH76: 14.2 | AI76: 41.0 | AK76: 1092.33 | AL76: 923.49 | AM76: 1661.39 | AN76: 1869.74 | AO76: 480.24 | AP76: 928.44 | AQ76: 311.81 | AR76: 1009.39 | AS76: 1254.1 | AT76: 1483.09 | AU76: 1874.25 | AV76: 606.81 | AW76: 1282.92 | AX76: 4239.18 | AY76: 163.57 | AZ76: 1214.71 | BA76: 982.62 | BB76: 752.47 | BC76: 338.52 | BD76: 0.11 | BE76: 0.05 | BF76: 0.03 | BG76: 0.06 | BH76: 0.07 | BI76: 0.34 | BJ76: 0 | BK76: 1.87 | BL76: 0 | BM76: 0.8 | BN76: 0.04 | BO76: 0.08 | BP76: 0 | BQ76: 0.07 | BR76: 0.11 | BS76: 3.87 | BT76: 0 | BU76: 0 | BV76: 7.39 | BW76: 0.03 | BX76: 0 | BY76: 0 | BZ76: 0 | CA76: 0 | CB76: 536.52 | CD76: =$I$76/#REF!*100 ->  | CE76: 382.15 | CG76: 83.48 | CH76: 49.39 | CI76: 66.43 | CJ76: 6933.6 | CK76: 3573.81 | CL76: 5253.71 | CM76: 124.74 | CN76: 73.27 | CO76: 99.01 | CP76: 13 | CQ76: 1.54
B78: 8 ДЕНЬ
B79: Горячий завтрак
A80: ="-" -> - | B80: Хлеб пшеничный | C80: 30 | D80: 1.8 | E80: 0.0 | F80: 0.2 | G80: 0.2 | H80: 11.1 | I80: 54 | J80: 0.0 | K80: 0.0 | L80: 0.0 | M80: 0.0 | N80: 0.3 | O80: 10.7 | P80: 0.1 | Q80: 0.0 | R80: 0.0 | S80: 0.0 | T80: 0.5 | U80: 0.0 | V80: 0.0 | W80: 0.0 | X80: 0.0 | Y80: 0.0 | Z80: 0.0 | AA80: 0.0 | AB80: 0.0 | AC80: 0.0 | AD80: 0.0 | AE80: 0.0 | AF80: 0.0 | AG80: 0.0 | AH80: 0.0 | AI80: 0.0 | AK80: 95.8 | AL80: 99.7 | AM80: 152.7 | AN80: 50.6 | AO80: 30.0 | AP80: 60.0 | AQ80: 22.7 | AR80: 108.6 | AS80: 67.3 | AT80: 94.0 | AU80: 77.5 | AV80: 40.7 | AW80: 72.0 | AX80: 602.4 | AY80: 0.0 | AZ80: 196.3 | BA80: 85.4 | BB80: 56.6 | BC80: 44.9 | BD80: 0.0 | BE80: 0.0 | BF80: 0.0 | BG80: 0.0 | BH80: 0.0 | BI80: 0.0 | BJ80: 0.0 | BK80: 0.0 | BL80: 0.0 | BM80: 0.0 | BN80: 0.0 | BO80: 0.0 | BP80: 0.0 | BQ80: 0.0 | BR80: 0.0 | BS80: 0.0 | BT80: 0.0 | BU80: 0.0 | BV80: 0.1 | BW80: 0.0 | BX80: 0.0 | BY80: 0.0 | BZ80: 0.0 | CA80: 0.0 | CB80: 11.7 | CE80: 0.0 | CG80: 0.0 | CH80: 0.0 | CI80: 0.0 | CJ80: 570.0 | CK80: 219.6 | CL80: 394.8 | CM80: 4.6 | CN80: 4.6 | CO80: 4.6 | CP80: 0.0 | CQ80: 0.0
A81: ="-" -> - | B81: Хлеб ржаной | C81: 30 | D81: 1.8 | E81: 0.0 | F81: 0.4 | G81: 0.4 | H81: 12.5 | I81: 57 | J81: 0.1 | K81: 0.0 | L81: 0.0 | M81: 0.0 | N81: 0.4 | O81: 9.7 | P81: 2.5 | Q81: 0.0 | R81: 0.0 | S81: 0.3 | T81: 0.8 | U81: 183.0 | V81: 73.5 | W81: 10.5 | X81: 14.1 | Y81: 47.4 | Z81: 1.2 | AA81: 0.0 | AB81: 1.5 | AC81: 0.3 | AD81: 0.4 | AE81: 0.1 | AF81: 0.0 | AG81: 0.2 | AH81: 0.6 | AI81: 0.0 | AK81: 96.6 | AL81: 74.4 | AM81: 128.1 | AN81: 66.9 | AO81: 27.9 | AP81: 59.4 | AQ81: 24.0 | AR81: 111.3 | AS81: 89.1 | AT81: 87.3 | AU81: 139.2 | AV81: 37.2 | AW81: 93.0 | AX81: 467.7 | AY81: 0.0 | AZ81: 157.8 | BA81: 87.3 | BB81: 54.0 | BC81: 39.0 | BD81: 0.0 | BE81: 0.0 | BF81: 0.0 | BG81: 0.0 | BH81: 0.0 | BI81: 0.0 | BJ81: 0.0 | BK81: 0.0 | BL81: 0.0 | BM81: 0.0 | BN81: 0.0 | BO81: 0.0 | BP81: 0.0 | BQ81: 0.0 | BR81: 0.0 | BS81: 0.0 | BT81: 0.0 | BU81: 0.0 | BV81: 0.1 | BW81: 0.0 | BX81: 0.0 | BY81: 0.0 | BZ81: 0.0 | CA81: 0.0 | CB81: 14.1 | CE81: 0.3 | CG81: 3.0 | CH81: 3.0 | CI81: 3.0 | CJ81: 570.0 | CK81: 219.6 | CL81: 394.8 | CM81: 5.7 | CN81: 4.7 | CO81: 5.2 | CP81: 0.0 | CQ81: 0.0
A82: ="29/10" -> 29/10 | B82: Чай с лимоном | C82: 200 | D82: 0.2 | E82: 0.0 | F82: 0.1 | G82: 0.1 | H82: 9.9 | I82: 40 | J82: 0.0 | K82: 0.0 | L82: 0.0 | M82: 0.0 | N82: 9.7 | O82: 0.0 | P82: 0.2 | Q82: 0.0 | R82: 0.0 | S82: 0.3 | T82: 0.1 | U82: 0.6 | V82: 8.2 | W82: 2.2 | X82: 0.6 | Y82: 1.0 | Z82: 0.1 | AA82: 0.0 | AB82: 0.4 | AC82: 0.1 | AD82: 0.0 | AE82: 0.0 | AF82: 0.0 | AG82: 0.0 | AH82: 0.0 | AI82: 0.8 | AK82: 0.67 | AL82: 0.76 | AM82: 0.62 | AN82: 1.15 | AO82: 0.29 | AP82: 1.2 | AQ82: 0 | AR82: 1.53 | AS82: 0 | AT82: 0 | AU82: 0 | AV82: 0.86 | AW82: 0 | AX82: 0 | AY82: 0 | AZ82: 0 | BA82: 0 | BB82: 0 | BC82: 0 | BD82: 0 | BE82: 0 | BF82: 0 | BG82: 0 | BH82: 0 | BI82: 0 | BJ82: 0 | BK82: 0 | BL82: 0 | BM82: 0 | BN82: 0 | BO82: 0 | BP82: 0 | BQ82: 0 | BR82: 0 | BS82: 0 | BT82: 0 | BU82: 0 | BV82: 0 | BW82: 0 | BX82: 0 | BY82: 0 | BZ82: 0 | CA82: 0 | CB82: 199.5 | CE82: 0.07 | CG82: 4.28 | CH82: 4.14 | CI82: 4.21 | CJ82: 482.93 | CK82: 183.51 | CL82: 333.22 | CM82: 44.36 | CN82: 26.52 | CO82: 35.44 | CP82: 9.76 | CQ82: 0
A83: ="-" -> - | B83: Яблоки | C83: 100 | D83: 0.4 | E83: 0.0 | F83: 0.4 | G83: 0.4 | H83: 11.6 | I83: 49 | J83: 0.1 | K83: 0.0 | L83: 0.0 | M83: 0.0 | N83: 9.0 | O83: 0.8 | P83: 1.8 | Q83: 0.0 | R83: 0.0 | S83: 0.8 | T83: 0.5 | U83: 26.0 | V83: 278.0 | W83: 16.0 | X83: 9.0 | Y83: 11.0 | Z83: 2.2 | AA83: 0.0 | AB83: 30.0 | AC83: 5.0 | AD83: 0.2 | AE83: 0.0 | AF83: 0.0 | AG83: 0.3 | AH83: 0.4 | AI83: 10.0 | AK83: 12 | AL83: 13 | AM83: 19 | AN83: 18 | AO83: 3 | AP83: 11 | AQ83: 3 | AR83: 9 | AS83: 17 | AT83: 10 | AU83: 78 | AV83: 7 | AW83: 14 | AX83: 42 | AY83: 0 | AZ83: 13 | BA83: 16 | BB83: 6 | BC83: 5 | BD83: 0 | BE83: 0 | BF83: 0 | BG83: 0 | BH83: 0 | BI83: 0 | BJ83: 0 | BK83: 0 | BL83: 0 | BM83: 0 | BN83: 0 | BO83: 0 | BP83: 0 | BQ83: 0 | BR83: 0 | BS83: 0 | BT83: 0 | BU83: 0 | BV83: 0 | BW83: 0 | BX83: 0 | BY83: 0 | BZ83: 0 | CA83: 0 | CB83: 86.3 | CE83: 5 | CG83: 2 | CH83: 2 | CI83: 2 | CJ83: 150 | CK83: 150 | CL83: 150 | CM83: 46.8 | CN83: 46.8 | CO83: 46.8 | CP83: 0 | CQ83: 0
A84: ="4/2" -> 4/2 | B84: Борщ с картофелем | C84: 220 | D84: 1.5 | E84: 0.0 | F84: 2.5 | G84: 2.8 | H84: 11.7 | I84: 70 | J84: 0.4 | K84: 1.7 | L84: 0.0 | M84: 0.0 | N84: 7.4 | O84: 2.5 | P84: 1.8 | Q84: 0.0 | R84: 0.0 | S84: 0.2 | T84: 1.7 | U84: 318.3 | V84: 273.1 | W84: 27.9 | X84: 18.0 | Y84: 37.6 | Z84: 0.9 | AA84: 0.0 | AB84: 891.3 | AC84: 185.7 | AD84: 1.3 | AE84: 0.0 | AF84: 0.0 | AG84: 0.5 | AH84: 0.8 | AI84: 7.0 | AK84: 34.83 | AL84: 37.64 | AM84: 44.67 | AN84: 53.61 | AO84: 12.66 | AP84: 34.25 | AQ84: 9.93 | AR84: 33.5 | AS84: 38.55 | AT84: 68.09 | AU84: 159.74 | AV84: 12.75 | AW84: 29.54 | AX84: 192.01 | AY84: 0 | AZ84: 32.76 | BA84: 37.81 | BB84: 31.27 | BC84: 11.42 | BD84: 0 | BE84: 0 | BF84: 0 | BG84: 0 | BH84: 0 | BI84: 0 | BJ84: 0 | BK84: 0.16 | BL84: 0 | BM84: 0.1 | BN84: 0.01 | BO84: 0.02 | BP84: 0 | BQ84: 0 | BR84: 0 | BS84: 0.58 | BT84: 0 | BU84: 0 | BV84: 1.58 | BW84: 0 | BX84: 0 | BY84: 0 | BZ84: 0 | CA84: 0 | CB84: 253.18 | CE84: 148.54 | CG84: 36.08 | CH84: 19.71 | CI84: 27.9 | CJ84: 664.31 | CK84: 206.71 | CL84: 435.51 | CM84: 8.31 | CN84: 4.66 | CO84: 6.49 | CP84: 2.2 | CQ84: 0.77
A85: ="41/2" -> 41/2 | B85: Фрикадельки мясные для супа | C85: 30 | D85: 5.8 | E85: 5.8 | F85: 4.1 | G85: 0.0 | H85: 0.3 | I85: 62 | J85: 2.5 | K85: 0.0 | L85: 0.0 | M85: 0.0 | N85: 0.2 | O85: 0.0 | P85: 0.1 | Q85: 0.0 | R85: 0.0 | S85: 0.0 | T85: 0.6 | U85: 83.2 | V85: 64.8 | W85: 4.1 | X85: 6.1 | Y85: 46.8 | Z85: 0.8 | AA85: 0.0 | AB85: 0.0 | AC85: 0.0 | AD85: 0.1 | AE85: 0.0 | AF85: 0.0 | AG85: 1.3 | AH85: 2.8 | AI85: 0.1 | AK85: 321.37 | AL85: 242.81 | AM85: 458.92 | AN85: 803.89 | AO85: 138.17 | AP85: 249.33 | AQ85: 65.21 | AR85: 246.85 | AS85: 337.2 | AT85: 323.86 | AU85: 549.9 | AV85: 220.46 | AW85: 290.94 | AX85: 954.17 | AY85: 90.05 | AZ85: 212.69 | BA85: 242.19 | BB85: 204.31 | BC85: 80.42 | BD85: 0 | BE85: 0 | BF85: 0 | BG85: 0 | BH85: 0 | BI85: 0 | BJ85: 0 | BK85: 0 | BL85: 0 | BM85: 0 | BN85: 0 | BO85: 0 | BP85: 0 | BQ85: 0 | BR85: 0 | BS85: 0 | BT85: 0 | BU85: 0 | BV85: 0 | BW85: 0 | BX85: 0 | BY85: 0 | BZ85: 0 | CA85: 0 | CB85: 27.83 | CE85: 0 | CG85: 14.63 | CH85: 8.63 | CI85: 11.63 | CJ85: 1150.3 | CK85: 723.61 | CL85: 936.95 | CM85: 8.69 | CN85: 5.06 | CO85: 6.87 | CP85: 0 | CQ85: 0.3
B86: Итого за 'Горячий завтрак' | C86: =SUM(C80:C85) -> 610 | D86: =SUM(D80:D85) -> 11.5 | E86: 5.8 | F86: 7.6 | G86: 3.8 | H86: 57.1 | I86: 332 | J86: 3.0 | K86: 1.7 | L86: 0.0 | M86: 0.0 | N86: 27.0 | O86: 23.6 | P86: 6.4 | Q86: 0.0 | R86: 0.0 | S86: 1.6 | T86: 4.2 | U86: 611.2 | V86: 697.6 | W86: 60.7 | X86: 47.7 | Y86: 143.7 | Z86: 5.1 | AA86: 0.0 | AB86: 923.2 | AC86: 191.1 | AD86: 2.1 | AE86: 0.1 | AF86: 0.1 | AG86: 2.3 | AH86: 4.7 | AI86: 17.9 | AK86: 561.25 | AL86: 468.32 | AM86: 804 | AN86: 994.17 | AO86: 212.03 | AP86: 415.21 | AQ86: 124.84 | AR86: 510.76 | AS86: 549.19 | AT86: 583.21 | AU86: 1004.35 | AV86: 318.99 | AW86: 499.51 | AX86: 2258.27 | AY86: 90.05 | AZ86: 612.53 | BA86: 468.64 | BB86: 352.22 | BC86: 180.73 | BD86: 0 | BE86: 0 | BF86: 0 | BG86: 0 | BH86: 0 | BI86: 0 | BJ86: 0 | BK86: 0.22 | BL86: 0 | BM86: 0.1 | BN86: 0.01 | BO86: 0.02 | BP86: 0 | BQ86: 0 | BR86: 0.01 | BS86: 0.63 | BT86: 0 | BU86: 0 | BV86: 1.81 | BW86: 0.03 | BX86: 0 | BY86: 0 | BZ86: 0 | CA86: 0 | CB86: 592.64 | CD86: =$I$86/#REF!*100 ->  | CE86: 153.87 | CG86: 62 | CH86: 39.48 | CI86: 50.74 | CJ86: 4347.54 | CK86: 1995.83 | CL86: 3171.68 | CM86: 125.25 | CN86: 98.55 | CO86: 111.9 | CP86: 11.96 | CQ86: 1.07
B88: 9 ДЕНЬ
B89: Горячий завтрак
A90: ="-" -> - | B90: Хлеб пшеничный | C90: 30 | D90: 1.8 | E90: 0.0 | F90: 0.2 | G90: 0.2 | H90: 11.1 | I90: 54 | J90: 0.0 | K90: 0.0 | L90: 0.0 | M90: 0.0 | N90: 0.3 | O90: 10.7 | P90: 0.1 | Q90: 0.0 | R90: 0.0 | S90: 0.0 | T90: 0.5 | U90: 0.0 | V90: 0.0 | W90: 0.0 | X90: 0.0 | Y90: 0.0 | Z90: 0.0 | AA90: 0.0 | AB90: 0.0 | AC90: 0.0 | AD90: 0.0 | AE90: 0.0 | AF90: 0.0 | AG90: 0.0 | AH90: 0.0 | AI90: 0.0 | AK90: 95.8 | AL90: 99.7 | AM90: 152.7 | AN90: 50.6 | AO90: 30.0 | AP90: 60.0 | AQ90: 22.7 | AR90: 108.6 | AS90: 67.3 | AT90: 94.0 | AU90: 77.5 | AV90: 40.7 | AW90: 72.0 | AX90: 602.4 | AY90: 0.0 | AZ90: 196.3 | BA90: 85.4 | BB90: 56.6 | BC90: 44.9 | BD90: 0.0 | BE90: 0.0 | BF90: 0.0 | BG90: 0.0 | BH90: 0.0 | BI90: 0.0 | BJ90: 0.0 | BK90: 0.0 | BL90: 0.0 | BM90: 0.0 | BN90: 0.0 | BO90: 0.0 | BP90: 0.0 | BQ90: 0.0 | BR90: 0.0 | BS90: 0.0 | BT90: 0.0 | BU90: 0.0 | BV90: 0.1 | BW90: 0.0 | BX90: 0.0 | BY90: 0.0 | BZ90: 0.0 | CA90: 0.0 | CB90: 11.7 | CE90: 0.0 | CG90: 0.0 | CH90: 0.0 | CI90: 0.0 | CJ90: 570.0 | CK90: 219.6 | CL90: 394.8 | CM90: 4.6 | CN90: 4.6 | CO90: 4.6 | CP90: 0.0 | CQ90: 0.0
A91: ="-" -> - | B91: Хлеб ржаной | C91: 30 | D91: 1.8 | E91: 0.0 | F91: 0.4 | G91: 0.4 | H91: 12.5 | I91: 57 | J91: 0.1 | K91: 0.0 | L91: 0.0 | M91: 0.0 | N91: 0.4 | O91: 9.7 | P91: 2.5 | Q91: 0.0 | R91: 0.0 | S91: 0.3 | T91: 0.8 | U91: 183.0 | V91: 73.5 | W91: 10.5 | X91: 14.1 | Y91: 47.4 | Z91: 1.2 | AA91: 0.0 | AB91: 1.5 | AC91: 0.3 | AD91: 0.4 | AE91: 0.1 | AF91: 0.0 | AG91: 0.2 | AH91: 0.6 | AI91: 0.0 | AK91: 96.6 | AL91: 74.4 | AM91: 128.1 | AN91: 66.9 | AO91: 27.9 | AP91: 59.4 | AQ91: 24.0 | AR91: 111.3 | AS91: 89.1 | AT91: 87.3 | AU91: 139.2 | AV91: 37.2 | AW91: 93.0 | AX91: 467.7 | AY91: 0.0 | AZ91: 157.8 | BA91: 87.3 | BB91: 54.0 | BC91: 39.0 | BD91: 0.0 | BE91: 0.0 | BF91: 0.0 | BG91: 0.0 | BH91: 0.0 | BI91: 0.0 | BJ91: 0.0 | BK91: 0.0 | BL91: 0.0 | BM91: 0.0 | BN91: 0.0 | BO91: 0.0 | BP91: 0.0 | BQ91: 0.0 | BR91: 0.0 | BS91: 0.0 | BT91: 0.0 | BU91: 0.0 | BV91: 0.1 | BW91: 0.0 | BX91: 0.0 | BY91: 0.0 | BZ91: 0.0 | CA91: 0.0 | CB91: 14.1 | CE91: 0.3 | CG91: 3.0 | CH91: 3.0 | CI91: 3.0 | CJ91: 570.0 | CK91: 219.6 | CL91: 394.8 | CM91: 5.7 | CN91: 4.7 | CO91: 5.2 | CP91: 0.0 | CQ91: 0.0
A92: ="3/10" -> 3/10 | B92: Компот из яблок | C92: 200 | D92: 0.2 | E92: 0.0 | F92: 0.2 | G92: 0.2 | H92: 19.2 | I92: 75 | J92: 0.0 | K92: 0.0 | L92: 0.0 | M92: 0.0 | N92: 18.2 | O92: 0.3 | P92: 0.7 | Q92: 0.0 | R92: 0.0 | S92: 0.3 | T92: 0.2 | U92: 10.4 | V92: 110.5 | W92: 6.6 | X92: 3.4 | Y92: 4.1 | Z92: 0.9 | AA92: 0.0 | AB92: 10.8 | AC92: 2.0 | AD92: 0.1 | AE92: 0.0 | AF92: 0.0 | AG92: 0.1 | AH92: 0.2 | AI92: 1.6 | AK92: 4.7 | AL92: 5.1 | AM92: 7.45 | AN92: 7.06 | AO92: 1.18 | AP92: 4.31 | AQ92: 1.18 | AR92: 3.53 | AS92: 6.66 | AT92: 3.92 | AU92: 30.58 | AV92: 2.74 | AW92: 5.49 | AX92: 16.46 | AY92: 0 | AZ92: 5.1 | BA92: 6.27 | BB92: 2.35 | BC92: 1.96 | BD92: 0 | BE92: 0 | BF92: 0 | BG92: 0 | BH92: 0 | BI92: 0 | BJ92: 0 | BK92: 0 | BL92: 0 | BM92: 0 | BN92: 0 | BO92: 0 | BP92: 0 | BQ92: 0 | BR92: 0 | BS92: 0 | BT92: 0 | BU92: 0 | BV92: 0 | BW92: 0 | BX92: 0 | BY92: 0 | BZ92: 0 | CA92: 0 | CB92: 244.54 | CE92: 1.8 | CG92: 5 | CH92: 5 | CI92: 5 | CJ92: 480 | CK92: 232.2 | CL92: 356.1 | CM92: 45.78 | CN92: 26.88 | CO92: 36.33 | CP92: 15 | CQ92: 0
A93: ="49/1" -> 49/1 | B93: Салат "Винегрет" с растительным маслом | C93: 100 | D93: 1.4 | E93: 0.0 | F93: 6.1 | G93: 6.1 | H93: 10.5 | I93: 100 | J93: 0.8 | K93: 3.9 | L93: 0.0 | M93: 0.0 | N93: 3.5 | O93: 5.4 | P93: 1.6 | Q93: 0.0 | R93: 0.0 | S93: 0.3 | T93: 1.9 | U93: 352.8 | V93: 282.0 | W93: 21.4 | X93: 19.1 | Y93: 43.8 | Z93: 0.8 | AA93: 0.0 | AB93: 922.3 | AC93: 184.3 | AD93: 2.8 | AE93: 0.1 | AF93: 0.0 | AG93: 0.5 | AH93: 1.0 | AI93: 4.0 | AK93: 27.37 | AL93: 32.89 | AM93: 40.04 | AN93: 47.75 | AO93: 9.35 | AP93: 31.22 | AQ93: 11.47 | AR93: 29.36 | AS93: 33.82 | AT93: 78.05 | AU93: 103.6 | AV93: 9.26 | AW93: 25.45 | AX93: 157.37 | AY93: 0 | AZ93: 23.23 | BA93: 25.57 | BB93: 22.81 | BC93: 8.9 | BD93: 0 | BE93: 0 | BF93: 0 | BG93: 0 | BH93: 0 | BI93: 0 | BJ93: 0 | BK93: 0.39 | BL93: 0 | BM93: 0.25 | BN93: 0.02 | BO93: 0.04 | BP93: 0 | BQ93: 0 | BR93: 0 | BS93: 1.46 | BT93: 0 | BU93: 0 | BV93: 3.51 | BW93: 0 | BX93: 0 | BY93: 0 | BZ93: 0 | CA93: 0 | CB93: 81.39 | CE93: 153.71 | CG93: 25 | CH93: 14.82 | CI93: 19.91 | CJ93: 640.34 | CK93: 264.71 | CL93: 452.52 | CM93: 10.43 | CN93: 3.03 | CO93: 6.73 | CP93: 0 | CQ93: 0.5
A94: ="46/3" -> 46/3 | B94: Макаронные изделия отварные с маслом сливочным | C94: 180 | D94: 6.4 | E94: 0.0 | F94: 3.6 | G94: 0.8 | H94: 40.9 | I94: 221 | J94: 2.2 | K94: 0.1 | L94: 0.0 | M94: 0.0 | N94: 1.2 | O94: 37.7 | P94: 2.1 | Q94: 0.0 | R94: 0.0 | S94: 0.0 | T94: 0.8 | U94: 176.7 | V94: 67.5 | W94: 12.6 | X94: 8.6 | Y94: 47.8 | Z94: 0.9 | AA94: 10.8 | AB94: 10.8 | AC94: 20.3 | AD94: 1.0 | AE94: 0.1 | AF94: 0.0 | AG94: 0.6 | AH94: 1.8 | AI94: 0.0 | AK94: 275.61 | AL94: 251.98 | AM94: 472.07 | AN94: 147.45 | AO94: 89.89 | AP94: 182.63 | AQ94: 59.92 | AR94: 292.87 | AS94: 193.67 | AT94: 233.51 | AU94: 200.31 | AV94: 117.69 | AW94: 204.66 | AX94: 1797.43 | AY94: 0 | AZ94: 566.38 | BA94: 293.38 | BB94: 147.32 | BC94: 116.63 | BD94: 0.11 | BE94: 0.05 | BF94: 0.03 | BG94: 0.06 | BH94: 0.07 | BI94: 0.31 | BJ94: 0 | BK94: 0.97 | BL94: 0 | BM94: 0.28 | BN94: 0 | BO94: 0 | BP94: 0 | BQ94: 0.06 | BR94: 0.1 | BS94: 0.72 | BT94: 0 | BU94: 0 | BV94: 0.29 | BW94: 0.01 | BX94: 0 | BY94: 0 | BZ94: 0 | CA94: 0 | CB94: 376.28 | CE94: 12.6 | CG94: 19.1 | CH94: 9.96 | CI94: 14.53 | CJ94: 443.79 | CK94: 438.48 | CL94: 441.14 | CM94: 11.24 | CN94: 5.72 | CO94: 8.48 | CP94: 0 | CQ94: 0.54
A95: ="2/9" -> 2/9 | B95: Мясо птицы отварное в соусе | C95: 100 | D95: 11.6 | E95: 11.3 | F95: 11.2 | G95: 0.0 | H95: 2.4 | I95: 157 | J95: 4.5 | K95: 0.1 | L95: 0.0 | M95: 0.0 | N95: 0.2 | O95: 2.0 | P95: 0.2 | Q95: 0.0 | R95: 0.0 | S95: 0.0 | T95: 1.1 | U95: 145.5 | V95: 78.1 | W95: 11.8 | X95: 10.0 | Y95: 83.2 | Z95: 0.9 | AA95: 30.2 | AB95: 15.9 | AC95: 63.2 | AD95: 0.4 | AE95: 0.0 | AF95: 0.1 | AG95: 4.3 | AH95: 8.7 | AI95: 0.4 | AK95: 558.47 | AL95: 443.07 | AM95: 900.67 | AN95: 989.77 | AO95: 297.08 | AP95: 540.62 | AQ95: 185.81 | AR95: 476.66 | AS95: 726.52 | AT95: 772.23 | AU95: 1023.57 | AV95: 308.15 | AW95: 863.35 | AX95: 1689.8 | AY95: 93.77 | AZ95: 572.1 | BA95: 548.4 | BB95: 405.95 | BC95: 144.77 | BD95: 0.06 | BE95: 0.03 | BF95: 0.01 | BG95: 0.03 | BH95: 0.04 | BI95: 0.18 | BJ95: 0 | BK95: 0.5 | BL95: 0 | BM95: 0.15 | BN95: 0 | BO95: 0 | BP95: 0 | BQ95: 0.03 | BR95: 0.05 | BS95: 0.41 | BT95: 0 | BU95: 0 | BV95: 0.03 | BW95: 0 | BX95: 0 | BY95: 0 | BZ95: 0 | CA95: 0 | CB95: 101.09 | CE95: 32.8 | CG95: 26.29 | CH95: 13.1 | CI95: 19.7 | CJ95: 2430.27 | CK95: 1502.53 | CL95: 1966.4 | CM95: 27.59 | CN95: 18.21 | CO95: 22.93 | CP95: 0 | CQ95: 0.5
B96: Итого за 'Горячий завтрак' | C96: =SUM(C90:C95) -> 640 | D96: =SUM(D90:D95) -> 23.2 | E96: 11.4 | F96: 21.6 | G96: 7.6 | H96: 96.7 | I96: 664 | J96: 7.6 | K96: 4.1 | L96: 0.0 | M96: 0.0 | N96: 23.8 | O96: 65.8 | P96: 7.1 | Q96: 0.0 | R96: 0.0 | S96: 0.9 | T96: 5.3 | U96: 868.4 | V96: 611.6 | W96: 63.0 | X96: 55.2 | Y96: 226.3 | Z96: 4.7 | AA96: 41.0 | AB96: 961.3 | AC96: 270.1 | AD96: 4.7 | AE96: 0.2 | AF96: 0.2 | AG96: 5.7 | AH96: 12.3 | AI96: 6.0 | AK96: 1058.53 | AL96: 907.14 | AM96: 1701 | AN96: 1309.56 | AO96: 455.41 | AP96: 878.21 | AQ96: 305.08 | AR96: 1022.29 | AS96: 1117.11 | AT96: 1268.98 | AU96: 1574.77 | AV96: 515.76 | AW96: 1263.99 | AX96: 4731.15 | AY96: 93.77 | AZ96: 1520.88 | BA96: 1046.27 | BB96: 689.07 | BC96: 356.16 | BD96: 0.17 | BE96: 0.08 | BF96: 0.04 | BG96: 0.09 | BH96: 0.11 | BI96: 0.49 | BJ96: 0 | BK96: 1.93 | BL96: 0 | BM96: 0.68 | BN96: 0.02 | BO96: 0.04 | BP96: 0 | BQ96: 0.1 | BR96: 0.16 | BS96: 2.64 | BT96: 0 | BU96: 0 | BV96: 4.06 | BW96: 0.04 | BX96: 0 | BY96: 0 | BZ96: 0 | CA96: 0 | CB96: 829.12 | CD96: =$I$96/#REF!*100 ->  | CE96: 201.16 | CG96: 80.39 | CH96: 47.88 | CI96: 64.13 | CJ96: 5894.39 | CK96: 3169.91 | CL96: 4532.15 | CM96: 112.13 | CN96: 69.33 | CO96: 90.76 | CP96: 15 | CQ96: 1.54
B98: 10 ДЕНЬ
B99: Горячий завтрак
A100: ="-" -> - | B100: Хлеб пшеничный | C100: 40 | D100: 2.4 | E100: 0.0 | F100: 0.2 | G100: 0.3 | H100: 14.8 | I100: 72 | J100: 0.0 | K100: 0.0 | L100: 0.0 | M100: 0.0 | N100: 0.4 | O100: 14.2 | P100: 0.1 | Q100: 0.0 | R100: 0.0 | S100: 0.0 | T100: 0.7 | U100: 0.0 | V100: 0.0 | W100: 0.0 | X100: 0.0 | Y100: 0.0 | Z100: 0.0 | AA100: 0.0 | AB100: 0.0 | AC100: 0.0 | AD100: 0.0 | AE100: 0.0 | AF100: 0.0 | AG100: 0.0 | AH100: 0.0 | AI100: 0.0 | AK100: 127.72 | AL100: 132.94 | AM100: 203.58 | AN100: 67.51 | AO100: 40.02 | AP100: 80.04 | AQ100: 30.28 | AR100: 144.77 | AS100: 89.78 | AT100: 125.28 | AU100: 103.36 | AV100: 54.29 | AW100: 96.05 | AX100: 803.18 | AY100: 0 | AZ100: 261.7 | BA100: 113.8 | BB100: 75.52 | BC100: 59.86 | BD100: 0 | BE100: 0 | BF100: 0 | BG100: 0 | BH100: 0 | BI100: 0 | BJ100: 0 | BK100: 0.03 | BL100: 0 | BM100: 0 | BN100: 0 | BO100: 0 | BP100: 0 | BQ100: 0 | BR100: 0 | BS100: 0.03 | BT100: 0 | BU100: 0 | BV100: 0.11 | BW100: 0.01 | BX100: 0 | BY100: 0 | BZ100: 0 | CA100: 0 | CB100: 15.64 | CE100: 0 | CG100: 0 | CH100: 0 | CI100: 0 | CJ100: 760 | CK100: 292.8 | CL100: 526.4 | CM100: 6.08 | CN100: 6.08 | CO100: 6.08 | CP100: 0 | CQ100: 0
A101: ="-" -> - | B101: Хлеб ржаной | C101: 30 | D101: 1.8 | E101: 0.0 | F101: 0.4 | G101: 0.4 | H101: 12.5 | I101: 57 | J101: 0.1 | K101: 0.0 | L101: 0.0 | M101: 0.0 | N101: 0.4 | O101: 9.7 | P101: 2.5 | Q101: 0.0 | R101: 0.0 | S101: 0.3 | T101: 0.8 | U101: 183.0 | V101: 73.5 | W101: 10.5 | X101: 14.1 | Y101: 47.4 | Z101: 1.2 | AA101: 0.0 | AB101: 1.5 | AC101: 0.3 | AD101: 0.4 | AE101: 0.1 | AF101: 0.0 | AG101: 0.2 | AH101: 0.6 | AI101: 0.0 | AK101: 96.6 | AL101: 74.4 | AM101: 128.1 | AN101: 66.9 | AO101: 27.9 | AP101: 59.4 | AQ101: 24.0 | AR101: 111.3 | AS101: 89.1 | AT101: 87.3 | AU101: 139.2 | AV101: 37.2 | AW101: 93.0 | AX101: 467.7 | AY101: 0.0 | AZ101: 157.8 | BA101: 87.3 | BB101: 54.0 | BC101: 39.0 | BD101: 0.0 | BE101: 0.0 | BF101: 0.0 | BG101: 0.0 | BH101: 0.0 | BI101: 0.0 | BJ101: 0.0 | BK101: 0.0 | BL101: 0.0 | BM101: 0.0 | BN101: 0.0 | BO101: 0.0 | BP101: 0.0 | BQ101: 0.0 | BR101: 0.0 | BS101: 0.0 | BT101: 0.0 | BU101: 0.0 | BV101: 0.1 | BW101: 0.0 | BX101: 0.0 | BY101: 0.0 | BZ101: 0.0 | CA101: 0.0 | CB101: 14.1 | CE101: 0.3 | CG101: 3.0 | CH101: 3.0 | CI101: 3.0 | CJ101: 570.0 | CK101: 219.6 | CL101: 394.8 | CM101: 5.7 | CN101: 4.7 | CO101: 5.2 | CP101: 0.0 | CQ101: 0.0
A102: ="4/13" -> 4/13 | B102: Сыр (порциями) | C102: 10 | D102: 2.6 | E102: 2.6 | F102: 2.7 | G102: 0.0 | H102: 0.0 | I102: 35 | J102: 1.5 | K102: 0.0 | L102: 0.0 | M102: 0.0 | N102: 0.0 | O102: 0.0 | P102: 0.0 | Q102: 0.0 | R102: 0.0 | S102: 0.2 | T102: 0.4 | U102: 110.0 | V102: 10.0 | W102: 100.0 | X102: 5.5 | Y102: 60.0 | Z102: 0.1 | AA102: 21.0 | AB102: 17.0 | AC102: 23.8 | AD102: 0.0 | AE102: 0.0 | AF102: 0.0 | AG102: 0.0 | AH102: 0.7 | AI102: 0.1 | AK102: 157 | AL102: 117 | AM102: 230 | AN102: 158 | AO102: 56 | AP102: 95 | AQ102: 70 | AR102: 134 | AS102: 76 | AT102: 87 | AU102: 156 | AV102: 70 | AW102: 51 | AX102: 517 | AY102: 0 | AZ102: 273 | BA102: 129 | BB102: 139 | BC102: 21.5 | BD102: 0 | BE102: 0.01 | BF102: 0.04 | BG102: 0.11 | BH102: 0.13 | BI102: 0.33 | BJ102: 0.04 | BK102: 0.7 | BL102: 0.01 | BM102: 0.16 | BN102: 0.01 | BO102: 0 | BP102: 0 | BQ102: 0.05 | BR102: 0.07 | BS102: 0.52 | BT102: 0 | BU102: 0 | BV102: 0.07 | BW102: 0 | BX102: 0 | BY102: 0 | BZ102: 0 | CA102: 0 | CB102: 4.08 | CE102: 23.83 | CG102: 1.5 | CH102: 1.5 | CI102: 1.5 | CJ102: 1500 | CK102: 1110 | CL102: 1305 | CM102: 4.59 | CN102: 2.91 | CO102: 3.75 | CP102: 0 | CQ102: 0
A103: ="27/10" -> 27/10 | B103: Чай полусладкий | C103: 200 | D103: 0.2 | E103: 0.0 | F103: 0.1 | G103: 0.1 | H103: 5.0 | I103: 20 | J103: 0.0 | K103: 0.0 | L103: 0.0 | M103: 0.0 | N103: 4.9 | O103: 0.0 | P103: 0.1 | Q103: 0.0 | R103: 0.0 | S103: 0.0 | T103: 0.1 | U103: 0.1 | V103: 0.2 | W103: 0.2 | X103: 0.0 | Y103: 0.0 | Z103: 0.0 | AA103: 0.0 | AB103: 0.0 | AC103: 0.0 | AD103: 0.0 | AE103: 0.0 | AF103: 0.0 | AG103: 0.0 | AH103: 0.0 | AI103: 0.0 | AK103: 0 | AL103: 0 | AM103: 0 | AN103: 0 | AO103: 0 | AP103: 0 | AQ103: 0 | AR103: 0 | AS103: 0 | AT103: 0 | AU103: 0 | AV103: 0 | AW103: 0 | AX103: 0 | AY103: 0 | AZ103: 0 | BA103: 0 | BB103: 0 | BC103: 0 | BD103: 0 | BE103: 0 | BF103: 0 | BG103: 0 | BH103: 0 | BI103: 0 | BJ103: 0 | BK103: 0 | BL103: 0 | BM103: 0 | BN103: 0 | BO103: 0 | BP103: 0 | BQ103: 0 | BR103: 0 | BS103: 0 | BT103: 0 | BU103: 0 | BV103: 0 | BW103: 0 | BX103: 0 | BY103: 0 | BZ103: 0 | CA103: 0 | CB103: 200.09 | CE103: 0 | CG103: 4.1 | CH103: 4.1 | CI103: 4.1 | CJ103: 442.5 | CK103: 174 | CL103: 308.25 | CM103: 44.01 | CN103: 26.01 | CO103: 35.01 | CP103: 5 | CQ103: 0
A104: ="4/9" -> 4/9 | B104: Плов из мяса цыплят-бройлеров | C104: 220 | D104: 19.8 | E104: 16.3 | F104: 21.6 | G104: 7.8 | H104: 41.3 | I104: 438 | J104: 5.8 | K104: 6.4 | L104: 0.0 | M104: 0.0 | N104: 2.0 | O104: 37.2 | P104: 2.1 | Q104: 0.0 | R104: 0.0 | S104: 0.1 | T104: 1.8 | U104: 149.4 | V104: 157.0 | W104: 22.4 | X104: 37.1 | Y104: 177.5 | Z104: 1.8 | AA104: 34.8 | AB104: 1461.9 | AC104: 313.6 | AD104: 5.1 | AE104: 0.1 | AF104: 0.1 | AG104: 6.9 | AH104: 14.3 | AI104: 1.0 | AK104: 982.5 | AL104: 775.61 | AM104: 1553.28 | AN104: 1538.51 | AO104: 496 | AP104: 878.92 | AQ104: 309.03 | AR104: 839.19 | AS104: 1217.16 | AT104: 1335.08 | AU104: 1722.44 | AV104: 514.58 | AW104: 1379.83 | AX104: 2886.73 | AY104: 135.14 | AZ104: 939.74 | BA104: 923.96 | BB104: 708.85 | BC104: 264.71 | BD104: 0 | BE104: 0 | BF104: 0 | BG104: 0 | BH104: 0 | BI104: 0 | BJ104: 0 | BK104: 0.53 | BL104: 0 | BM104: 0.32 | BN104: 0.02 | BO104: 0.05 | BP104: 0 | BQ104: 0 | BR104: 0 | BS104: 1.88 | BT104: 0 | BU104: 0 | BV104: 4.46 | BW104: 0 | BX104: 0 | BY104: 0 | BZ104: 0 | CA104: 0 | CB104: 194.17 | CE104: 278.46 | CG104: 26.84 | CH104: 13.56 | CI104: 20.2 | CJ104: 5252.87 | CK104: 3022.59 | CL104: 4137.73 | CM104: 27.27 | CN104: 17.33 | CO104: 22.3 | CP104: 0 | CQ104: 0.88
B105: Итого за 'Горячий завтрак' | C105: =SUM(C100:C104) -> 500 | D105: =SUM(D100:D104) -> 26.8 | E105: 18.9 | F105: 24.9 | G105: 8.5 | H105: 73.6 | I105: 622 | J105: 7.4 | K105: 6.4 | L105: 0.0 | M105: 0.0 | N105: 7.7 | O105: 61.1 | P105: 4.8 | Q105: 0.0 | R105: 0.0 | S105: 0.6 | T105: 3.8 | U105: 442.5 | V105: 240.7 | W105: 133.0 | X105: 56.7 | Y105: 284.9 | Z105: 3.1 | AA105: 55.8 | AB105: 1480.4 | AC105: 337.7 | AD105: 5.6 | AE105: 0.1 | AF105: 0.2 | AG105: 7.1 | AH105: 15.6 | AI105: 1.1 | AK105: 1363.81 | AL105: 1099.95 | AM105: 2114.96 | AN105: 1830.92 | AO105: 619.92 | AP105: 1113.36 | AQ105: 433.31 | AR105: 1229.26 | AS105: 1472.05 | AT105: 1634.66 | AU105: 2121 | AV105: 676.07 | AW105: 1619.88 | AX105: 4674.62 | AY105: 135.14 | AZ105: 1632.23 | BA105: 1254.05 | BB105: 977.36 | BC105: 385.07 | BD105: 0 | BE105: 0.01 | BF105: 0.04 | BG105: 0.11 | BH105: 0.13 | BI105: 0.34 | BJ105: 0.04 | BK105: 1.3 | BL105: 0.01 | BM105: 0.48 | BN105: 0.04 | BO105: 0.05 | BP105: 0 | BQ105: 0.05 | BR105: 0.07 | BS105: 2.46 | BT105: 0 | BU105: 0 | BV105: 4.78 | BW105: 0.03 | BX105: 0 | BY105: 0 | BZ105: 0 | CA105: 0 | CB105: 428.08 | CD105: =$I$105/#REF!*100 ->  | CE105: 302.54 | CG105: 34.43 | CH105: 21.16 | CI105: 27.79 | CJ105: 8525.37 | CK105: 4818.99 | CL105: 6672.18 | CM105: 87.27 | CN105: 57.01 | CO105: 72.14 | CP105: 5 | CQ105: 0.88
B107: 11 ДЕНЬ
B108: Горячий завтрак
A109: ="-" -> - | B109: Хлеб пшеничный | C109: 30 | D109: 1.8 | E109: 0.0 | F109: 0.2 | G109: 0.2 | H109: 11.1 | I109: 54 | J109: 0.0 | K109: 0.0 | L109: 0.0 | M109: 0.0 | N109: 0.3 | O109: 10.7 | P109: 0.1 | Q109: 0.0 | R109: 0.0 | S109: 0.0 | T109: 0.5 | U109: 0.0 | V109: 0.0 | W109: 0.0 | X109: 0.0 | Y109: 0.0 | Z109: 0.0 | AA109: 0.0 | AB109: 0.0 | AC109: 0.0 | AD109: 0.0 | AE109: 0.0 | AF109: 0.0 | AG109: 0.0 | AH109: 0.0 | AI109: 0.0 | AK109: 95.8 | AL109: 99.7 | AM109: 152.7 | AN109: 50.6 | AO109: 30.0 | AP109: 60.0 | AQ109: 22.7 | AR109: 108.6 | AS109: 67.3 | AT109: 94.0 | AU109: 77.5 | AV109: 40.7 | AW109: 72.0 | AX109: 602.4 | AY109: 0.0 | AZ109: 196.3 | BA109: 85.4 | BB109: 56.6 | BC109: 44.9 | BD109: 0.0 | BE109: 0.0 | BF109: 0.0 | BG109: 0.0 | BH109: 0.0 | BI109: 0.0 | BJ109: 0.0 | BK109: 0.0 | BL109: 0.0 | BM109: 0.0 | BN109: 0.0 | BO109: 0.0 | BP109: 0.0 | BQ109: 0.0 | BR109: 0.0 | BS109: 0.0 | BT109: 0.0 | BU109: 0.0 | BV109: 0.1 | BW109: 0.0 | BX109: 0.0 | BY109: 0.0 | BZ109: 0.0 | CA109: 0.0 | CB109: 11.7 | CE109: 0.0 | CG109: 0.0 | CH109: 0.0 | CI109: 0.0 | CJ109: 570.0 | CK109: 219.6 | CL109: 394.8 | CM109: 4.6 | CN109: 4.6 | CO109: 4.6 | CP109: 0.0 | CQ109: 0.0
A110: ="-" -> - | B110: Хлеб ржаной | C110: 30 | D110: 1.8 | E110: 0.0 | F110: 0.4 | G110: 0.4 | H110: 12.5 | I110: 57 | J110: 0.1 | K110: 0.0 | L110: 0.0 | M110: 0.0 | N110: 0.4 | O110: 9.7 | P110: 2.5 | Q110: 0.0 | R110: 0.0 | S110: 0.3 | T110: 0.8 | U110: 183.0 | V110: 73.5 | W110: 10.5 | X110: 14.1 | Y110: 47.4 | Z110: 1.2 | AA110: 0.0 | AB110: 1.5 | AC110: 0.3 | AD110: 0.4 | AE110: 0.1 | AF110: 0.0 | AG110: 0.2 | AH110: 0.6 | AI110: 0.0 | AK110: 96.6 | AL110: 74.4 | AM110: 128.1 | AN110: 66.9 | AO110: 27.9 | AP110: 59.4 | AQ110: 24.0 | AR110: 111.3 | AS110: 89.1 | AT110: 87.3 | AU110: 139.2 | AV110: 37.2 | AW110: 93.0 | AX110: 467.7 | AY110: 0.0 | AZ110: 157.8 | BA110: 87.3 | BB110: 54.0 | BC110: 39.0 | BD110: 0.0 | BE110: 0.0 | BF110: 0.0 | BG110: 0.0 | BH110: 0.0 | BI110: 0.0 | BJ110: 0.0 | BK110: 0.0 | BL110: 0.0 | BM110: 0.0 | BN110: 0.0 | BO110: 0.0 | BP110: 0.0 | BQ110: 0.0 | BR110: 0.0 | BS110: 0.0 | BT110: 0.0 | BU110: 0.0 | BV110: 0.1 | BW110: 0.0 | BX110: 0.0 | BY110: 0.0 | BZ110: 0.0 | CA110: 0.0 | CB110: 14.1 | CE110: 0.3 | CG110: 3.0 | CH110: 3.0 | CI110: 3.0 | CJ110: 570.0 | CK110: 219.6 | CL110: 394.8 | CM110: 5.7 | CN110: 4.7 | CO110: 5.2 | CP110: 0.0 | CQ110: 0.0
A111: ="6/10" -> 6/10 | B111: Компот из сухофруктов | C111: 200 | D111: 1.0 | E111: 0.0 | F111: 0.1 | G111: 0.1 | H111: 23.2 | I111: 88 | J111: 0.0 | K111: 0.0 | L111: 0.0 | M111: 0.0 | N111: 19.2 | O111: 0.6 | P111: 3.4 | Q111: 0.0 | R111: 0.0 | S111: 0.3 | T111: 0.8 | U111: 3.5 | V111: 340.3 | W111: 31.3 | X111: 20.0 | Y111: 27.2 | Z111: 0.7 | AA111: 0.0 | AB111: 630.0 | AC111: 116.6 | AD111: 1.1 | AE111: 0.0 | AF111: 0.1 | AG111: 0.5 | AH111: 0.8 | AI111: 0.5 | AK111: 0.01 | AL111: 0.01 | AM111: 0.01 | AN111: 0.02 | AO111: 0 | AP111: 0.01 | AQ111: 0 | AR111: 0.01 | AS111: 0.01 | AT111: 0.01 | AU111: 0.06 | AV111: 0 | AW111: 0.01 | AX111: 0.03 | AY111: 0 | AZ111: 0.02 | BA111: 0.01 | BB111: 0.01 | BC111: 0 | BD111: 0 | BE111: 0 | BF111: 0 | BG111: 0 | BH111: 0 | BI111: 0 | BJ111: 0 | BK111: 0 | BL111: 0 | BM111: 0 | BN111: 0 | BO111: 0 | BP111: 0 | BQ111: 0 | BR111: 0 | BS111: 0.01 | BT111: 0 | BU111: 0 | BV111: 0.01 | BW111: 0 | BX111: 0 | BY111: 0 | BZ111: 0 | CA111: 0 | CB111: 214.01 | CE111: 105 | CG111: 4.39 | CH111: 4.39 | CI111: 4.39 | CJ111: 505 | CK111: 192.2 | CL111: 348.6 | CM111: 46.6 | CN111: 27.7 | CO111: 37.15 | CP111: 10 | CQ111: 0
A112: ="32/1" -> 32/1 | B112: Салат из отварной свеклы с растительным маслом | C112: 100 | D112: 1.4 | E112: 0.0 | F112: 6.0 | G112: 6.0 | H112: 9.0 | I112: 90 | J112: 0.8 | K112: 3.9 | L112: 0.0 | M112: 0.0 | N112: 6.8 | O112: 0.1 | P112: 2.2 | Q112: 0.0 | R112: 0.0 | S112: 0.1 | T112: 1.5 | U112: 223.1 | V112: 223.4 | W112: 34.1 | X112: 19.3 | Y112: 38.0 | Z112: 1.2 | AA112: 0.0 | AB112: 8.2 | AC112: 2.0 | AD112: 2.7 | AE112: 0.0 | AF112: 0.0 | AG112: 0.2 | AH112: 0.4 | AI112: 1.9 | AK112: 48.8 | AL112: 55.25 | AM112: 61.69 | AN112: 84.71 | AO112: 18.42 | AP112: 48.8 | AQ112: 11.97 | AR112: 41.43 | AS112: 36.83 | AT112: 67.22 | AU112: 302.01 | AV112: 12.89 | AW112: 34.99 | AX112: 252.29 | AY112: 0 | AZ112: 43.28 | BA112: 58.01 | BB112: 46.04 | BC112: 13.81 | BD112: 0 | BE112: 0 | BF112: 0 | BG112: 0 | BH112: 0 | BI112: 0 | BJ112: 0 | BK112: 0.36 | BL112: 0 | BM112: 0.24 | BN112: 0.02 | BO112: 0.04 | BP112: 0 | BQ112: 0 | BR112: 0 | BS112: 1.39 | BT112: 0 | BU112: 0 | BV112: 3.47 | BW112: 0 | BX112: 0 | BY112: 0 | BZ112: 0 | CA112: 0 | CB112: 85.06 | CE112: 1.37 | CG112: 27.16 | CH112: 16.98 | CI112: 22.07 | CJ112: 854.32 | CK112: 204.39 | CL112: 529.35 | CM112: 4.09 | CN112: 2.6 | CO112: 3.35 | CP112: 0 | CQ112: 0.5
A113: ="3/3" -> 3/3 | B113: Картофельное пюре с маслом сливочным | C113: 180 | D113: 3.7 | E113: 0.7 | F113: 4.3 | G113: 0.6 | H113: 26.5 | I113: 158 | J113: 2.7 | K113: 0.1 | L113: 0.0 | M113: 0.0 | N113: 2.6 | O113: 21.9 | P113: 2.0 | Q113: 0.0 | R113: 0.0 | S113: 0.4 | T113: 2.3 | U113: 93.4 | V113: 763.5 | W113: 40.8 | X113: 36.4 | Y113: 104.2 | Z113: 1.4 | AA113: 22.5 | AB113: 40.9 | AC113: 30.1 | AD113: 0.2 | AE113: 0.1 | AF113: 0.1 | AG113: 1.6 | AH113: 3.1 | AI113: 6.5 | AK113: 40.27 | AL113: 63.31 | AM113: 80.2 | AN113: 94.26 | AO113: 16.12 | AP113: 63.57 | AQ113: 32.62 | AR113: 64.89 | AS113: 90.8 | AT113: 247.35 | AU113: 110.17 | AV113: 23.04 | AW113: 64.13 | AX113: 344.65 | AY113: 0 | AZ113: 48.22 | BA113: 43.86 | BB113: 47.97 | BC113: 20.43 | BD113: 0.11 | BE113: 0.05 | BF113: 0.03 | BG113: 0.06 | BH113: 0.07 | BI113: 0.34 | BJ113: 0 | BK113: 1.05 | BL113: 0 | BM113: 0.31 | BN113: 0 | BO113: 0 | BP113: 0 | BQ113: 0.07 | BR113: 0.11 | BS113: 1.02 | BT113: 0 | BU113: 0 | BV113: 0.17 | BW113: 0 | BX113: 0 | BY113: 0 | BZ113: 0 | CA113: 0 | CB113: 148.48 | CE113: 29.32 | CG113: 21.11 | CH113: 14 | CI113: 17.55 | CJ113: 722.47 | CK113: 635.04 | CL113: 678.76 | CM113: 29.29 | CN113: 4.31 | CO113: 16.8 | CP113: 0 | CQ113: 0.54
A114: ="7" -> 7 | B114: Биточки (котлеты) из мяса бройлер-цыплят | C114: 100 | D114: 15.1 | E114: 12.8 | F114: 14.2 | G114: 4.0 | H114: 13.1 | I114: 241 | J114: 3.9 | K114: 3.3 | L114: 0.0 | M114: 0.0 | N114: 0.5 | O114: 11.7 | P114: 0.9 | Q114: 0.0 | R114: 0.0 | S114: 0.1 | T114: 1.7 | U114: 254.8 | V114: 150.1 | W114: 16.6 | X114: 21.3 | Y114: 134.4 | Z114: 1.9 | AA114: 41.4 | AB114: 7.9 | AC114: 53.4 | AD114: 2.9 | AE114: 0.1 | AF114: 0.1 | AG114: 5.6 | AH114: 10.1 | AI114: 0.3 | AK114: 672.32 | AL114: 545.24 | AM114: 1081.56 | AN114: 1140.93 | AO114: 348.59 | AP114: 636.03 | AQ114: 219.2 | AR114: 586.26 | AS114: 850.48 | AT114: 915.9 | AU114: 1191.74 | AV114: 365.37 | AW114: 1007.87 | AX114: 2165.26 | AY114: 106.15 | AZ114: 730.84 | BA114: 653.58 | BB114: 483.61 | BC114: 183.62 | BD114: 0 | BE114: 0 | BF114: 0 | BG114: 0 | BH114: 0 | BI114: 0 | BJ114: 0 | BK114: 0.25 | BL114: 0 | BM114: 0.15 | BN114: 0.01 | BO114: 0.03 | BP114: 0 | BQ114: 0 | BR114: 0 | BS114: 0.9 | BT114: 0 | BU114: 0 | BV114: 2.26 | BW114: 0 | BX114: 0 | BY114: 0 | BZ114: 0 | CA114: 0 | CB114: 77.69 | CE114: 42.76 | CG114: 25.33 | CH114: 12 | CI114: 18.66 | CJ114: 2703.27 | CK114: 1650.59 | CL114: 2176.93 | CM114: 17.9 | CN114: 13.75 | CO114: 15.83 | CP114: 0 | CQ114: 0.5
B115: Итого за 'Горячий завтрак' | C115: =SUM(C109:C114) -> 640 | D115: =SUM(D109:D114) -> 24.9 | E115: 13.4 | F115: 25.1 | G115: 11.2 | H115: 95.4 | I115: 687 | J115: 7.4 | K115: 7.3 | L115: 0.0 | M115: 0.0 | N115: 29.7 | O115: 54.6 | P115: 11.1 | Q115: 0.0 | R115: 0.0 | S115: 1.2 | T115: 7.5 | U115: 757.8 | V115: 1550.7 | W115: 133.3 | X115: 111.0 | Y115: 351.1 | Z115: 6.3 | AA115: 63.9 | AB115: 688.6 | AC115: 202.3 | AD115: 7.4 | AE115: 0.3 | AF115: 0.3 | AG115: 8.1 | AH115: 14.9 | AI115: 9.2 | AK115: 953.78 | AL115: 837.91 | AM115: 1504.25 | AN115: 1437.46 | AO115: 441.04 | AP115: 867.83 | AQ115: 310.5 | AR115: 912.48 | AS115: 1134.56 | AT115: 1411.73 | AU115: 1820.69 | AV115: 479.22 | AW115: 1272.03 | AX115: 3832.31 | AY115: 106.15 | AZ115: 1176.42 | BA115: 928.11 | BB115: 688.25 | BC115: 301.75 | BD115: 0.11 | BE115: 0.05 | BF115: 0.03 | BG115: 0.06 | BH115: 0.07 | BI115: 0.34 | BJ115: 0 | BK115: 1.73 | BL115: 0 | BM115: 0.72 | BN115: 0.03 | BO115: 0.07 | BP115: 0 | BQ115: 0.07 | BR115: 0.11 | BS115: 3.38 | BT115: 0 | BU115: 0 | BV115: 6.13 | BW115: 0.03 | BX115: 0 | BY115: 0 | BZ115: 0 | CA115: 0 | CB115: 551.07 | CD115: =$I$115/#REF!*100 ->  | CE115: 178.7 | CG115: 79.99 | CH115: 49.37 | CI115: 64.68 | CJ115: 6115.05 | CK115: 3194.61 | CL115: 4654.83 | CM115: 109.28 | CN115: 59.12 | CO115: 84.2 | CP115: 10 | CQ115: 1.54
B117: 12 ДЕНЬ
B118: Горячий завтрак
A119: ="-" -> - | B119: Хлеб пшеничный | C119: 30 | D119: 1.8 | E119: 0.0 | F119: 0.2 | G119: 0.2 | H119: 11.1 | I119: 54 | J119: 0.0 | K119: 0.0 | L119: 0.0 | M119: 0.0 | N119: 0.3 | O119: 10.7 | P119: 0.1 | Q119: 0.0 | R119: 0.0 | S119: 0.0 | T119: 0.5 | U119: 0.0 | V119: 0.0 | W119: 0.0 | X119: 0.0 | Y119: 0.0 | Z119: 0.0 | AA119: 0.0 | AB119: 0.0 | AC119: 0.0 | AD119: 0.0 | AE119: 0.0 | AF119: 0.0 | AG119: 0.0 | AH119: 0.0 | AI119: 0.0 | AK119: 95.8 | AL119: 99.7 | AM119: 152.7 | AN119: 50.6 | AO119: 30.0 | AP119: 60.0 | AQ119: 22.7 | AR119: 108.6 | AS119: 67.3 | AT119: 94.0 | AU119: 77.5 | AV119: 40.7 | AW119: 72.0 | AX119: 602.4 | AY119: 0.0 | AZ119: 196.3 | BA119: 85.4 | BB119: 56.6 | BC119: 44.9 | BD119: 0.0 | BE119: 0.0 | BF119: 0.0 | BG119: 0.0 | BH119: 0.0 | BI119: 0.0 | BJ119: 0.0 | BK119: 0.0 | BL119: 0.0 | BM119: 0.0 | BN119: 0.0 | BO119: 0.0 | BP119: 0.0 | BQ119: 0.0 | BR119: 0.0 | BS119: 0.0 | BT119: 0.0 | BU119: 0.0 | BV119: 0.1 | BW119: 0.0 | BX119: 0.0 | BY119: 0.0 | BZ119: 0.0 | CA119: 0.0 | CB119: 11.7 | CE119: 0.0 | CG119: 0.0 | CH119: 0.0 | CI119: 0.0 | CJ119: 570.0 | CK119: 219.6 | CL119: 394.8 | CM119: 4.6 | CN119: 4.6 | CO119: 4.6 | CP119: 0.0 | CQ119: 0.0
A120: ="-" -> - | B120: Хлеб ржаной | C120: 30 | D120: 1.8 | E120: 0.0 | F120: 0.4 | G120: 0.4 | H120: 12.5 | I120: 57 | J120: 0.1 | K120: 0.0 | L120: 0.0 | M120: 0.0 | N120: 0.4 | O120: 9.7 | P120: 2.5 | Q120: 0.0 | R120: 0.0 | S120: 0.3 | T120: 0.8 | U120: 183.0 | V120: 73.5 | W120: 10.5 | X120: 14.1 | Y120: 47.4 | Z120: 1.2 | AA120: 0.0 | AB120: 1.5 | AC120: 0.3 | AD120: 0.4 | AE120: 0.1 | AF120: 0.0 | AG120: 0.2 | AH120: 0.6 | AI120: 0.0 | AK120: 96.6 | AL120: 74.4 | AM120: 128.1 | AN120: 66.9 | AO120: 27.9 | AP120: 59.4 | AQ120: 24.0 | AR120: 111.3 | AS120: 89.1 | AT120: 87.3 | AU120: 139.2 | AV120: 37.2 | AW120: 93.0 | AX120: 467.7 | AY120: 0.0 | AZ120: 157.8 | BA120: 87.3 | BB120: 54.0 | BC120: 39.0 | BD120: 0.0 | BE120: 0.0 | BF120: 0.0 | BG120: 0.0 | BH120: 0.0 | BI120: 0.0 | BJ120: 0.0 | BK120: 0.0 | BL120: 0.0 | BM120: 0.0 | BN120: 0.0 | BO120: 0.0 | BP120: 0.0 | BQ120: 0.0 | BR120: 0.0 | BS120: 0.0 | BT120: 0.0 | BU120: 0.0 | BV120: 0.1 | BW120: 0.0 | BX120: 0.0 | BY120: 0.0 | BZ120: 0.0 | CA120: 0.0 | CB120: 14.1 | CE120: 0.3 | CG120: 3.0 | CH120: 3.0 | CI120: 3.0 | CJ120: 570.0 | CK120: 219.6 | CL120: 394.8 | CM120: 5.7 | CN120: 4.7 | CO120: 5.2 | CP120: 0.0 | CQ120: 0.0
A121: ="27/10" -> 27/10 | B121: Чай сладкий | C121: 200 | D121: 0.2 | E121: 0.0 | F121: 0.1 | G121: 0.1 | H121: 9.9 | I121: 39 | J121: 0.0 | K121: 0.0 | L121: 0.0 | M121: 0.0 | N121: 9.8 | O121: 0.0 | P121: 0.1 | Q121: 0.0 | R121: 0.0 | S121: 0.0 | T121: 0.1 | U121: 0.1 | V121: 0.3 | W121: 0.3 | X121: 0.0 | Y121: 0.0 | Z121: 0.0 | AA121: 0.0 | AB121: 0.0 | AC121: 0.0 | AD121: 0.0 | AE121: 0.0 | AF121: 0.0 | AG121: 0.0 | AH121: 0.0 | AI121: 0.0 | AK121: 0 | AL121: 0 | AM121: 0 | AN121: 0 | AO121: 0 | AP121: 0 | AQ121: 0 | AR121: 0 | AS121: 0 | AT121: 0 | AU121: 0 | AV121: 0 | AW121: 0 | AX121: 0 | AY121: 0 | AZ121: 0 | BA121: 0 | BB121: 0 | BC121: 0 | BD121: 0 | BE121: 0 | BF121: 0 | BG121: 0 | BH121: 0 | BI121: 0 | BJ121: 0 | BK121: 0 | BL121: 0 | BM121: 0 | BN121: 0 | BO121: 0 | BP121: 0 | BQ121: 0 | BR121: 0 | BS121: 0 | BT121: 0 | BU121: 0 | BV121: 0 | BW121: 0 | BX121: 0 | BY121: 0 | BZ121: 0 | CA121: 0 | CB121: 200.1 | CE121: 0 | CG121: 4.19 | CH121: 4.19 | CI121: 4.19 | CJ121: 485 | CK121: 184 | CL121: 334.5 | CM121: 44.42 | CN121: 26.42 | CO121: 35.42 | CP121: 10 | CQ121: 0
A122: ="3/3" -> 3/3 | B122: Картофельное пюре с маслом сливочным | C122: 180 | D122: 3.7 | E122: 0.7 | F122: 4.3 | G122: 0.6 | H122: 26.5 | I122: 158 | J122: 2.7 | K122: 0.1 | L122: 0.0 | M122: 0.0 | N122: 2.6 | O122: 21.9 | P122: 2.0 | Q122: 0.0 | R122: 0.0 | S122: 0.4 | T122: 2.3 | U122: 93.4 | V122: 763.5 | W122: 40.8 | X122: 36.4 | Y122: 104.2 | Z122: 1.4 | AA122: 22.5 | AB122: 40.9 | AC122: 30.1 | AD122: 0.2 | AE122: 0.1 | AF122: 0.1 | AG122: 1.6 | AH122: 3.1 | AI122: 6.5 | AK122: 40.27 | AL122: 63.31 | AM122: 80.2 | AN122: 94.26 | AO122: 16.12 | AP122: 63.57 | AQ122: 32.62 | AR122: 64.89 | AS122: 90.8 | AT122: 247.35 | AU122: 110.17 | AV122: 23.04 | AW122: 64.13 | AX122: 344.65 | AY122: 0 | AZ122: 48.22 | BA122: 43.86 | BB122: 47.97 | BC122: 20.43 | BD122: 0.11 | BE122: 0.05 | BF122: 0.03 | BG122: 0.06 | BH122: 0.07 | BI122: 0.34 | BJ122: 0 | BK122: 1.05 | BL122: 0 | BM122: 0.31 | BN122: 0 | BO122: 0 | BP122: 0 | BQ122: 0.07 | BR122: 0.11 | BS122: 1.02 | BT122: 0 | BU122: 0 | BV122: 0.17 | BW122: 0 | BX122: 0 | BY122: 0 | BZ122: 0 | CA122: 0 | CB122: 148.48 | CE122: 29.32 | CG122: 21.11 | CH122: 14 | CI122: 17.55 | CJ122: 722.47 | CK122: 635.04 | CL122: 678.76 | CM122: 29.29 | CN122: 4.31 | CO122: 16.8 | CP122: 0 | CQ122: 0.54
A123: ="4/256" -> 4/256 | B123: Мясо тушеное в томатном соусе | C123: 100 | D123: 12.2 | E123: 15.4 | F123: 10.0 | G123: 3.0 | H123: 4.5 | I123: 153 | J123: 8.7 | K123: 85.0 | L123: 0.0 | M123: 0.0 | N123: 1.4 | O123: 1.3 | P123: 1.8 | Q123: 0.0 | R123: 0.0 | S123: 0.1 | T123: 1.3 | U123: 171.9 | V123: 292.0 | W123: 10.8 | X123: 20.2 | Y123: 144.4 | Z123: 2.1 | AA123: 0.0 | AB123: 456.0 | AC123: 95.0 | AD123: 1.8 | AE123: 0.1 | AF123: 0.1 | AG123: 3.3 | AH123: 7.1 | AI123: 1.1 | AK123: 817.98 | AL123: 619.52 | AM123: 1169.94 | AN123: 2026.07 | AO123: 350.4 | AP123: 633.55 | AQ123: 166.02 | AR123: 630.83 | AS123: 855.31 | AT123: 822.82 | AU123: 1393.2 | AV123: 558.24 | AW123: 738.72 | AX123: 2464.3 | AY123: 226.26 | AZ123: 553.8 | BA123: 619.2 | BB123: 518.75 | BC123: 206.28 | BD123: 0 | BE123: 0 | BF123: 0 | BG123: 0 | BH123: 0 | BI123: 0 | BJ123: 0 | BK123: 0.17 | BL123: 0 | BM123: 0.11 | BN123: 0.01 | BO123: 0.02 | BP123: 0 | BQ123: 0 | BR123: 0 | BS123: 0.63 | BT123: 0 | BU123: 0 | BV123: 1.78 | BW123: 0 | BX123: 0 | BY123: 0 | BZ123: 0 | CA123: 0 | CB123: 64.28 | CE123: 76 | CG123: 18.33 | CH123: 12.33 | CI123: 15.33 | CJ123: 2798.2 | CK123: 1749.1 | CL123: 2273.65 | CM123: 19.13 | CN123: 11.17 | CO123: 15.17 | CP123: 0 | CQ123: 0.3
B124: Итого за 'Горячий завтрак' | C124: =SUM(C119:C123) -> 540 | D124: =SUM(D119:D123) -> 19.8 | E124: 16.1 | F124: 14.8 | G124: 4.3 | H124: 64.5 | I124: 461 | J124: 11.4 | K124: 85.1 | L124: 0.0 | M124: 0.0 | N124: 14.5 | O124: 43.5 | P124: 6.5 | Q124: 0.0 | R124: 0.0 | S124: 0.8 | T124: 4.9 | U124: 448.4 | V124: 1129.3 | W124: 62.3 | X124: 70.7 | Y124: 296.0 | Z124: 4.7 | AA124: 22.5 | AB124: 498.4 | AC124: 125.4 | AD124: 2.4 | AE124: 0.2 | AF124: 0.3 | AG124: 5.1 | AH124: 10.8 | AI124: 7.7 | AK124: 1050.64 | AL124: 856.93 | AM124: 1530.93 | AN124: 2237.87 | AO124: 424.44 | AP124: 816.55 | AQ124: 245.35 | AR124: 915.6 | AS124: 1102.55 | AT124: 1251.43 | AU124: 1720.09 | AV124: 659.19 | AW124: 967.88 | AX124: 3879.04 | AY124: 226.26 | AZ124: 956.1 | BA124: 835.71 | BB124: 677.35 | BC124: 310.61 | BD124: 0.11 | BE124: 0.05 | BF124: 0.03 | BG124: 0.06 | BH124: 0.07 | BI124: 0.34 | BJ124: 0 | BK124: 1.29 | BL124: 0 | BM124: 0.43 | BN124: 0.01 | BO124: 0.02 | BP124: 0 | BQ124: 0.07 | BR124: 0.11 | BS124: 1.7 | BT124: 0 | BU124: 0 | BV124: 2.17 | BW124: 0.03 | BX124: 0 | BY124: 0 | BZ124: 0 | CA124: 0 | CB124: 438.69 | CD124: =$I$124/#REF!*100 ->  | CE124: 105.57 | CG124: 45.62 | CH124: 32.51 | CI124: 39.07 | CJ124: 5335.67 | CK124: 3080.54 | CL124: 4208.11 | CM124: 104.24 | CN124: 52.66 | CO124: 78.47 | CP124: 10 | CQ124: 0.84
B126: Итого за период | C126: =C17+C27+C37+C47+C56+C66+C76+C86+C96+C105+C115+C124 -> 7130 | D126: =D17+D27+D37+D47+D56+D66+D76+D86+D96+D105+D115+D124 -> 260.7 | E126: 155.2 | F126: 237.5 | G126: 99.1 | H126: 952.9 | I126: 6857 | J126: 85.7 | K126: 238.6 | L126: 0.0 | M126: 0.0 | N126: 247.9 | O126: 615.1 | P126: 89.9 | Q126: 0.0 | R126: 0.0 | S126: 11.4 | T126: 61.4 | U126: 7481.3 | V126: 9829.4 | W126: 1172.2 | X126: 945.9 | Y126: 3380.7 | Z126: 57.6 | AA126: 463.1 | AB126: 22645.8 | AC126: 4616.8 | AD126: 58.4 | AE126: 2.6 | AF126: 2.6 | AG126: 68.1 | AH126: 138.9 | AI126: 153.8

Sheet Dop
A1: Дата составления | B1: 2025-09-01
A2: Дата печати | B2: 2025-07-23T10:53:34
A3: Группа | B3: Школа 11 лет и старше (горячий завтрак)
A4: Физ.Норма | B4: СанПиН 2.3/2.4.3590-20 12 лет и старше
B5: 1
B6: 12.09.2025
